Workbook

Sheet Tabelle1
B1: Nr. | C1: Nr | D1: Datum | E1: Fracht | F1: Start | G1: LC | H1: Flagge | I1: Spedition | J1: Ziel | K1: LC | L1: Flagge | M1: Spedition | N1: km | O1: Vergütung | P1: Gewicht Lieferung | Q1: Strafen
B2: 1 | C2: 2 | D2: 2024-06-25 | E2: Traktoren | F2: Graz | G2: AT | H2: =VLOOKUP(G2,Tabelle2!$B$3:$C$38,2,) ->  | I2: FCP | J2: Linz | K2: AT | L2: =VLOOKUP(K2,Tabelle2!$B$3:$C$38,2,) ->  | M2: RTLog | N2: 249 | O2: 4663 | Q2: 0
B3: 2 | C3: 3 | D3: 2024-06-25 | E3: Traktoren | F3: Graz | G3: AT | H3: =VLOOKUP(G3,Tabelle2!$B$3:$C$38,2,) ->  | I3: FCP | J3: Klagenfurt a.W. | K3: AT | L3: =VLOOKUP(K3,Tabelle2!$B$3:$C$38,2,) ->  | M3: EuroAcres | N3: 218 | O3: 4667 | Q3: 0
B4: 3 | C4: 6 | D4: 2024-06-25 | E4: Große Eisenrohre | F4: Linz | G4: AT | H4: =VLOOKUP(G4,Tabelle2!$B$3:$C$38,2,) ->  | I4: ITCC | J4: Innsbruck | K4: AT | L4: =VLOOKUP(K4,Tabelle2!$B$3:$C$38,2,) ->  | M4: RTLog | N4: 325 | O4: 5080 | Q4: 0
B5: 4 | C5: 1 | D5: 2024-06-25 | E5: Äpfel | F5: Graz | G5: AT | H5: =VLOOKUP(G5,Tabelle2!$B$3:$C$38,2,) ->  | I5: LKWLog | J5: Graz | K5: AT | L5: =VLOOKUP(K5,Tabelle2!$B$3:$C$38,2,) ->  | M5: RTLog | N5: 1 | O5: 362 | Q5: 200
B6: 5 | C6: 8 | D6: 2024-06-25 | E6: Motorradreifen | F6: Graz | G6: AT | H6: =VLOOKUP(G6,Tabelle2!$B$3:$C$38,2,) ->  | I6: LKWLog | J6: Salzburg | K6: AT | L6: =VLOOKUP(K6,Tabelle2!$B$3:$C$38,2,) ->  | M6: RTLog | N6: 281 | O6: 5968 | Q6: 0
B7: 6 | C7: 4 | D7: 2024-06-25 | E7: Traktoren | F7: Linz | G7: AT | H7: =VLOOKUP(G7,Tabelle2!$B$3:$C$38,2,) ->  | I7: PoSped | J7: Graz | K7: AT | L7: =VLOOKUP(K7,Tabelle2!$B$3:$C$38,2,) ->  | M7: RTLog | N7: 249 | O7: 5304 | Q7: 0
B8: 7 | C8: 5 | D8: 2024-06-25 | E8: Olivenöl | F8: Linz | G8: AT | H8: =VLOOKUP(G8,Tabelle2!$B$3:$C$38,2,) ->  | I8: PoSped | J8: Prag | K8: CZ | L8: =VLOOKUP(K8,Tabelle2!$B$3:$C$38,2,) ->  | M8: EuroGoodies | N8: 306 | O8: 4325 | Q8: 400
B9: 8 | C9: 7 | D9: 2024-06-25 | E9: Milchpulver | F9: Prag | G9: CZ | H9: =VLOOKUP(G9,Tabelle2!$B$3:$C$38,2,) ->  | I9: Tradeaux | J9: Erfurt | K9: DE | L9: =VLOOKUP(K9,Tabelle2!$B$3:$C$38,2,) ->  | M9: Sellplan | N9: 344 | O9: 5378 | Q9: 0
B10: 9 | C10: 15 | D10: 2024-06-26 | E10: Große Eisenrohre | F10: Metz | G10: FR | H10: =VLOOKUP(G10,Tabelle2!$B$3:$C$38,2,) ->  | I10: PoSped | J10: Frankfurt | K10: DE | L10: =VLOOKUP(K10,Tabelle2!$B$3:$C$38,2,) ->  | M10: WGCC | N10: 351 | O10: 7947 | Q10: 400
B11: 10 | C11: 11 | D11: 2024-06-26 | E11: Rohrleitungszbehör | F11: Salzburg | G11: AT | H11: =VLOOKUP(G11,Tabelle2!$B$3:$C$38,2,) ->  | I11: RTLog | J11: Stuttgart | K11: DE | L11: =VLOOKUP(K11,Tabelle2!$B$3:$C$38,2,) ->  | M11: Stokes | N11: 349 | O11: 7723 | Q11: 0
B12: 11 | C12: 13 | D12: 2024-06-26 | E12: Altkunststoff | F12: Bern | G12: CH | H12: =VLOOKUP(G12,Tabelle2!$B$3:$C$38,2,) ->  | I12: Sellplan | J12: Dijon | K12: FR | L12: =VLOOKUP(K12,Tabelle2!$B$3:$C$38,2,) ->  | M12: Stokes | N12: 216 | O12: 3536 | Q12: 0
B13: 12 | C13: 9 | D13: 2024-06-26 | E13: Stilles Mineralwasser in Flaschen | F13: Salzburg | G13: AT | H13: =VLOOKUP(G13,Tabelle2!$B$3:$C$38,2,) ->  | I13: Shuttle Cola | J13: Brünn | K13: CZ | L13: =VLOOKUP(K13,Tabelle2!$B$3:$C$38,2,) ->  | M13: LKWLog | N13: 336 | O13: 7334 | Q13: 0
B14: 13 | C14: 12 | D14: 2024-06-26 | E14: Milch | F14: Stuttgart | G14: DE | H14: =VLOOKUP(G14,Tabelle2!$B$3:$C$38,2,) ->  | I14: Stokes | J14: Bern | K14: CH | L14: =VLOOKUP(K14,Tabelle2!$B$3:$C$38,2,) ->  | M14: Sellplan | N14: 336 | O14: 8772 | Q14: 0
B15: 14 | C15: 14 | D15: 2024-06-26 | E15: Mineralwasser | F15: Dijon | G15: FR | H15: =VLOOKUP(G15,Tabelle2!$B$3:$C$38,2,) ->  | I15: Stokes | J15: Metz | K15: FR | L15: =VLOOKUP(K15,Tabelle2!$B$3:$C$38,2,) ->  | M15: PoSped | N15: 251 | O15: 5496 | Q15: 0
B16: 15 | C16: 10 | D16: 2024-06-26 | E16: Gabelstapler | F16: Brünn | G16: CZ | H16: =VLOOKUP(G16,Tabelle2!$B$3:$C$38,2,) ->  | I16: Trameri | J16: Salzburg | K16: AT | L16: =VLOOKUP(K16,Tabelle2!$B$3:$C$38,2,) ->  | M16: RTLog | N16: 343 | O16: 8367 | Q16: 0
B17: 16 | C17: 16 | D17: 2024-06-26 | E17: Gabelstapler | F17: Frankfurt | G17: DE | H17: =VLOOKUP(G17,Tabelle2!$B$3:$C$38,2,) ->  | I17: WGCC | J17: Luxemburg | K17: LU | L17: =VLOOKUP(K17,Tabelle2!$B$3:$C$38,2,) ->  | M17: SanBuilders | N17: 330 | O17: 8480 | P17: 21720 | Q17: 800
B18: 17 | C18: 19 | D18: 2024-06-27 | E18: Autos | F18: Manchester | G18: GB | H18: =VLOOKUP(G18,Tabelle2!$B$3:$C$38,2,) ->  | I18: FCP | J18: Amsterdam | K18: NL | L18: =VLOOKUP(K18,Tabelle2!$B$3:$C$38,2,) ->  | M18: LKWLog | N18: 301 | O18: 8802 | Q18: 0
B19: 18 | C19: 20 | D19: 2024-06-27 | E19: Rohrleitunngszubehör | F19: Amsterdam | G19: NL | H19: =VLOOKUP(G19,Tabelle2!$B$3:$C$38,2,) ->  | I19: LKWLog | J19: Hannover | K19: DE | L19: =VLOOKUP(K19,Tabelle2!$B$3:$C$38,2,) ->  | M19: Tradeaux | N19: 328 | O19: 7563 | Q19: 0
B20: 19 | C20: 18 | D20: 2024-06-27 | E20: Reifen | F20: Rotterdam | G20: NL | H20: =VLOOKUP(G20,Tabelle2!$B$3:$C$38,2,) ->  | I20: PoSped | J20: Manchester | K20: GB | L20: =VLOOKUP(K20,Tabelle2!$B$3:$C$38,2,) ->  | M20: FCP | N20: 227 | O20: 6321 | Q20: 0
B21: 20 | C21: 17 | D21: 2024-06-27 | E21: Raupenbagger | F21: Luxemburg | G21: LU | H21: =VLOOKUP(G21,Tabelle2!$B$3:$C$38,2,) ->  | I21: SanBuilders | J21: Rotterdam | K21: NL | L21: =VLOOKUP(K21,Tabelle2!$B$3:$C$38,2,) ->  | M21: PoSped | N21: 343 | O21: 8763 | Q21: 0
B22: 21 | C22: 22 | D22: 2024-06-28 | E22: Leere Paletten | F22: Rostock | G22: DE | H22: =VLOOKUP(G22,Tabelle2!$B$3:$C$38,2,) ->  | I22: Sellplan | J22: Prag | K22: CZ | L22: =VLOOKUP(K22,Tabelle2!$B$3:$C$38,2,) ->  | M22: Tradeaux | N22: 550 | O22: 10964 | Q22: 0
B23: 22 | C23: 21 | D23: 2024-06-28 | E23: Einmachgläser | F23: Hanover | G23: DE | H23: =VLOOKUP(G23,Tabelle2!$B$3:$C$38,2,) ->  | I23: Tradeaux | J23: Rostock | K23: DE | L23: =VLOOKUP(K23,Tabelle2!$B$3:$C$38,2,) ->  | M23: Sellplan | N23: 346 | O23: 9085 | Q23: 400
B24: 23 | C24: 23 | D24: 2024-06-28 | E24: Äpfel | F24: Prag | G24: CZ | H24: =VLOOKUP(G24,Tabelle2!$B$3:$C$38,2,) ->  | I24: Tradeaux | J24: Salzburg | K24: AT | L24: =VLOOKUP(K24,Tabelle2!$B$3:$C$38,2,) ->  | M24: RTLog | N24: 381 | O24: 8967 | Q24: 0
B25: 24 | C25: 25 | D25: 2024-06-30 | E25: Kautschuk | F25: Bratislava | G25: SK | H25: =VLOOKUP(G25,Tabelle2!$B$3:$C$38,2,) ->  | I25: PoSped | J25: Linz | K25: AT | L25: =VLOOKUP(K25,Tabelle2!$B$3:$C$38,2,) ->  | M25: PoSped | N25: 330 | O25: 8278 | P25: 21730 | Q25: 0
B26: 25 | C26: 26 | D26: 2024-06-30 | E26: Mandeln | F26: Linz | G26: AT | H26: =VLOOKUP(G26,Tabelle2!$B$3:$C$38,2,) ->  | I26: PoSped | J26: Klagenfurt a.W. | K26: AT | L26: =VLOOKUP(K26,Tabelle2!$B$3:$C$38,2,) ->  | M26: Tradeaux | N26: 324 | O26: 7068 | P26: 17460 | Q26: 0
B27: 26 | C27: 28 | D27: 2024-06-30 | E27: Klebebandrollen | F27: Verona | G27: IT | H27: =VLOOKUP(G27,Tabelle2!$B$3:$C$38,2,) ->  | I27: PoSped | J27: Torino | K27: IT | L27: =VLOOKUP(K27,Tabelle2!$B$3:$C$38,2,) ->  | M27: transinet | N27: 350 | O27: 7132 | P27: 18018 | Q27: 0
B28: 27 | C28: 24 | D28: 2024-06-30 | E28: Klebebandrollen | F28: Salzburg | G28: AT | H28: =VLOOKUP(G28,Tabelle2!$B$3:$C$38,2,) ->  | I28: RTLog | J28: Bratislava | K28: SK | L28: =VLOOKUP(K28,Tabelle2!$B$3:$C$38,2,) ->  | M28: PoSped | N28: 320 | O28: 5604 | P28: 12492 | Q28: 0
B29: 28 | C29: 27 | D29: 2024-06-30 | E29: Schnittblumen | F29: Klagenfurt a.W. | G29: AT | H29: =VLOOKUP(G29,Tabelle2!$B$3:$C$38,2,) ->  | I29: Tradeaux | J29: Verona | K29: IT | L29: =VLOOKUP(K29,Tabelle2!$B$3:$C$38,2,) ->  | M29: PoSped | N29: 450 | O29: 11727 | P29: 1759 | Q29: 0
B30: 29 | C30: 29 | D30: 2024-06-30 | E30: Beton-Bodenplatten | F30: Torino | G30: IT | H30: =VLOOKUP(G30,Tabelle2!$B$3:$C$38,2,) ->  | I30: transinet | J30: Zürich | K30: CH | L30: =VLOOKUP(K30,Tabelle2!$B$3:$C$38,2,) ->  | M30: RTLog | N30: 511 | O30: 8929 | P30: 19188 | Q30: 0
B31: 30 | C31: 4 | D31: 2024-07-01 | E31: Eiskaffee in Dosen | F31: Mannheim | G31: DE | H31: =VLOOKUP(G31,Tabelle2!$B$3:$C$38,2,) ->  | I31: EuroGoodies | J31: Lille | K31: FR | L31: =VLOOKUP(K31,Tabelle2!$B$3:$C$38,2,) ->  | M31: Tradeaux | N31: 546 | O31: 12933 | P31: 21259 | Q31: 0
B32: 31 | C32: 2 | D32: 2024-07-01 | E32: Motoröl | F32: Verona | G32: IT | H32: =VLOOKUP(G32,Tabelle2!$B$3:$C$38,2,) ->  | I32: PoSped | J32: Innsbruck | K32: AT | L32: =VLOOKUP(K32,Tabelle2!$B$3:$C$38,2,) ->  | M32: RTLog | N32: 281 | O32: 7255 | P32: 18754 | Q32: 0
B33: 32 | C33: 1 | D33: 2024-07-01 | E33: Geräucherter Aal | F33: Zürich | G33: CH | H33: =VLOOKUP(G33,Tabelle2!$B$3:$C$38,2,) ->  | I33: RTLog | J33: Verona | K33: IT | L33: =VLOOKUP(K33,Tabelle2!$B$3:$C$38,2,) ->  | M33: PoSped | N33: 492 | O33: 12231 | P33: 11481 | Q33: 0
B34: 33 | C34: 3 | D34: 2024-07-01 | E34: Milch | F34: Innsbruck | G34: AT | H34: =VLOOKUP(G34,Tabelle2!$B$3:$C$38,2,) ->  | I34: RTLog | J34: Mannheim | K34: DE | L34: =VLOOKUP(K34,Tabelle2!$B$3:$C$38,2,) ->  | M34: EuroGoodies | N34: 548 | O34: 13474 | P34: 20500 | Q34: 0
B35: 34 | C35: 5 | D35: 2024-07-02 | E35: Radlader | F35: Graz | G35: AT | H35: =VLOOKUP(G35,Tabelle2!$B$3:$C$38,2,) ->  | I35: FCP | J35: Nürnberg | K35: DE | L35: =VLOOKUP(K35,Tabelle2!$B$3:$C$38,2,) ->  | M35: SanBuilders | N35: 515 | O35: 14881 | Q35: 520
B36: 35 | C36: 8 | D36: 2024-07-03 | E36: Kokosnussöl | F36: Reims | G36: FR | H36: =VLOOKUP(G36,Tabelle2!$B$3:$C$38,2,) ->  | I36: EuroGoodies | J36: Calais | K36: FR | L36: =VLOOKUP(K36,Tabelle2!$B$3:$C$38,2,) ->  | M36: Stokes | N36: 269 | O36: 6705 | P36: 23631 | Q36: 0
B37: 36 | C37: 7 | D37: 2024-07-03 | E37: Fischstäbchen | F37: Dortmund | G37: DE | H37: =VLOOKUP(G37,Tabelle2!$B$3:$C$38,2,) ->  | I37: LKWLog | J37: Reims | K37: FR | L37: =VLOOKUP(K37,Tabelle2!$B$3:$C$38,2,) ->  | M37: Eurogoodies | N37: 485 | O37: 12051 | P37: 17160 | Q37: 0
B38: 37 | C38: 10 | D38: 2024-07-03 | E38: Industrieruß | F38: Birmingham | G38: GB | H38: =VLOOKUP(G38,Tabelle2!$B$3:$C$38,2,) ->  | I38: PoSped | J38: Manchester | K38: GB | L38: =VLOOKUP(K38,Tabelle2!$B$3:$C$38,2,) ->  | M38: LKWLog | N38: 201 | O38: 2480 | P38: 3783 | Q38: 0
B39: 38 | C39: 6 | D39: 2024-07-03 | E39: Leere Paletten | F39: Nürnberg | G39: DE | H39: =VLOOKUP(G39,Tabelle2!$B$3:$C$38,2,) ->  | I39: SanBuilders | J39: Dortmund | K39: DE | L39: =VLOOKUP(K39,Tabelle2!$B$3:$C$38,2,) ->  | M39: LKWLog | N39: 479 | O39: 7305 | P39: 15385 | Q39: 0
B40: 39 | C40: 9 | D40: 2024-07-03 | E40: Eisenrohre | F40: Calais | G40: FR | H40: =VLOOKUP(G40,Tabelle2!$B$3:$C$38,2,) ->  | I40: Stokes | J40: Birmingham | K40: BG | L40: =VLOOKUP(K40,Tabelle2!$B$3:$C$38,2,) ->  | M40: PoSped | N40: 342 | O40: 7760 | P40: 18760 | Q40: 0
B41: 40 | C41: 11 | D41: 2024-07-04 | E41: Autos | F41: Manchester | G41: GB | H41: =VLOOKUP(G41,Tabelle2!$B$3:$C$38,2,) ->  | I41: FCP | J41: Rotterdam | K41: NL | L41: =VLOOKUP(K41,Tabelle2!$B$3:$C$38,2,) ->  | M41: transinet | N41: 225 | O41: 8178 | P41: 7350 | Q41: 400
B42: 41 | C42: 14 | D42: 2024-07-04 | E42: LPG | F42: Hamburg | G42: DE | H42: =VLOOKUP(G42,Tabelle2!$B$3:$C$38,2,) ->  | I42: NSOil | J42: Leipzig | K42: DE | L42: =VLOOKUP(K42,Tabelle2!$B$3:$C$38,2,) ->  | M42: Tree-Et | N42: 449 | O42: 15322 | P42: 22000 | Q42: 360
B43: 42 | C43: 12 | D43: 2024-07-04 | E43: Flour | F43: Rotterdam | G43: NL | H43: =VLOOKUP(G43,Tabelle2!$B$3:$C$38,2,) ->  | I43: WGCC | J43: Frankfurt | K43: DE | L43: =VLOOKUP(K43,Tabelle2!$B$3:$C$38,2,) ->  | M43: WGCC | N43: 463 | O43: 15654 | P43: 14790 | Q43: 0
B44: 43 | C44: 13 | D44: 2024-07-04 | E44: Kraftstofftank | F44: Frankfurt | G44: DE | H44: =VLOOKUP(G44,Tabelle2!$B$3:$C$38,2,) ->  | I44: WGCC | J44: Hamburg | K44: DE | L44: =VLOOKUP(K44,Tabelle2!$B$3:$C$38,2,) ->  | M44: AI Automotive | N44: 518 | O44: 14215 | P44: 9600 | Q44: 0
B45: 44 | C45: 16 | D45: 2024-07-05 | E45: Milch | F45: Bremen | G45: DE | H45: =VLOOKUP(G45,Tabelle2!$B$3:$C$38,2,) ->  | I45: EuroAcres | J45: Groningen | K45: NL | L45: =VLOOKUP(K45,Tabelle2!$B$3:$C$38,2,) ->  | M45: Sellplan | N45: 193 | O45: 6080 | P45: 25075 | Q45: 3200
B46: 45 | C46: 17 | D46: 2024-07-05 | E46: Milch | F46: Groningen | G46: NL | H46: =VLOOKUP(G46,Tabelle2!$B$3:$C$38,2,) ->  | I46: EuroAcres | J46: Dresden | K46: DE | L46: =VLOOKUP(K46,Tabelle2!$B$3:$C$38,2,) ->  | M46: transinet | N46: 765 | O46: 25271 | P46: 25075 | Q46: 3940
B47: 46 | C47: 15 | D47: 2024-07-05 | E47: Saftkonzentrat | F47: Leipzig | G47: DE | H47: =VLOOKUP(G47,Tabelle2!$B$3:$C$38,2,) ->  | I47: EuroGoodies | J47: Bremen | K47: DE | L47: =VLOOKUP(K47,Tabelle2!$B$3:$C$38,2,) ->  | M47: EuroAcres | N47: 511 | O47: 10053 | P47: 24820 | Q47: 0
B48: 47 | C48: 19 | D48: 2024-07-05 | E48: Große Eisenrohre | F48: Lüttich | G48: BE | H48: =VLOOKUP(G48,Tabelle2!$B$3:$C$38,2,) ->  | I48: ITCC | J48: Swansea | K48: GB | L48: =VLOOKUP(K48,Tabelle2!$B$3:$C$38,2,) ->  | M48: PoSped | N48: 781 | O48: 20181 | P48: 22840 | Q48: 400
B49: 48 | C49: 18 | D49: 2024-07-05 | E49: Altkunststoff | F49: Dresden | G49: DE | H49: =VLOOKUP(G49,Tabelle2!$B$3:$C$38,2,) ->  | I49: Trameri | J49: Lüttich | K49: BE | L49: =VLOOKUP(K49,Tabelle2!$B$3:$C$38,2,) ->  | M49: Stokes | N49: 714 | O49: 13172 | P49: 9762 | Q49: 0
B50: 49 | C50: 20 | D50: 2024-07-06 | E50: Medizinische Ausrüstung | F50: Graz | G50: AT | H50: =VLOOKUP(G50,Tabelle2!$B$3:$C$38,2,) ->  | I50: LKWLog | J50: Wien | K50: AT | L50: =VLOOKUP(K50,Tabelle2!$B$3:$C$38,2,) ->  | M50: Stokes | N50: 234 | O50: 5430 | P50: 5214 | Q50: 0
B51: 50 | C51: 22 | D51: 2024-07-06 | E51: Raupenbagger | F51: Graz | G51: AT | H51: =VLOOKUP(G51,Tabelle2!$B$3:$C$38,2,) ->  | I51: Steinbruch | J51: Graz | K51: AT | L51: =VLOOKUP(K51,Tabelle2!$B$3:$C$38,2,) ->  | M51: Steinbruch | N51: 55 | O51: 101603 | P51: 21720 | Q51: 360
B52: 51 | C52: 23 | D52: 2024-07-06 | E52: Steine | F52: Graz | G52: AT | H52: =VLOOKUP(G52,Tabelle2!$B$3:$C$38,2,) ->  | I52: Steinbruch | J52: Graz | K52: AT | L52: =VLOOKUP(K52,Tabelle2!$B$3:$C$38,2,) ->  | M52: FCP | N52: 45 | O52: 34998 | P52: 23100 | Q52: 0
B53: 52 | C53: 21 | D53: 2024-07-06 | E53: Abgassysteme | F53: Wien | G53: AT | H53: =VLOOKUP(G53,Tabelle2!$B$3:$C$38,2,) ->  | I53: Stokes | J53: Graz | K53: AT | L53: =VLOOKUP(K53,Tabelle2!$B$3:$C$38,2,) ->  | M53: Steinbruch | N53: 190 | O53: 2664 | P53: 3753 | Q53: 0
B54: 53 | C54: 24 | D54: 2024-07-07 | E54: Bagger | F54: Graz | G54: AT | H54: =VLOOKUP(G54,Tabelle2!$B$3:$C$38,2,) ->  | I54: FCP | J54: Graz | K54: AT | L54: =VLOOKUP(K54,Tabelle2!$B$3:$C$38,2,) ->  | M54: Tree-Et | N54: 212 | O54: 102806 | P54: 23780 | Q54: 0
B55: 54 | C55: 27 | D55: 2024-07-07 | E55: Autos | F55: Graz | G55: AT | H55: =VLOOKUP(G55,Tabelle2!$B$3:$C$38,2,) ->  | I55: RTLog | J55: Frankfurt | K55: DE | L55: =VLOOKUP(K55,Tabelle2!$B$3:$C$38,2,) ->  | M55: WGCC | N55: 692 | O55: 26100 | P55: 10400 | Q55: 0
B56: 55 | C56: 29 | D56: 2024-07-07 | E56: Getränke | F56: Genf | G56: CH | H56: =VLOOKUP(G56,Tabelle2!$B$3:$C$38,2,) ->  | I56: RTLog | J56: Strassburg | K56: FR | L56: =VLOOKUP(K56,Tabelle2!$B$3:$C$38,2,) ->  | M56: Kaarfor | N56: 452 | O56: 12931 | P56: 25000 | Q56: 0
B57: 56 | C57: 26 | D57: 2024-07-07 | E57: Bagger | F57: Graz | G57: AT | H57: =VLOOKUP(G57,Tabelle2!$B$3:$C$38,2,) ->  | I57: Steinbruch | J57: Graz | K57: AT | L57: =VLOOKUP(K57,Tabelle2!$B$3:$C$38,2,) ->  | M57: EuroAcres | N57: 176 | O57: 102806 | P57: 23780 | Q57: 0
B58: 57 | C58: 25 | D58: 2024-07-07 | E58: Fertighauswände | F58: Graz | G58: AT | H58: =VLOOKUP(G58,Tabelle2!$B$3:$C$38,2,) ->  | I58: Tree-Et | J58: Graz | K58: AT | L58: =VLOOKUP(K58,Tabelle2!$B$3:$C$38,2,) ->  | M58: FCP | N58: 153 | O58: 78308 | P58: 20999 | Q58: 0
B59: 58 | C59: 28 | D59: 2024-07-07 | E59: Neon | F59: Frankfurt | G59: DE | H59: =VLOOKUP(G59,Tabelle2!$B$3:$C$38,2,) ->  | I59: WGCC | J59: Genf | K59: CH | L59: =VLOOKUP(K59,Tabelle2!$B$3:$C$38,2,) ->  | M59: Kathode | N59: 645 | O59: 19621 | P59: 9600 | Q59: 0
B60: 59 | C60: 32 | D60: 2024-07-08 | E60: Traktoren | F60: Wien | G60: AT | H60: =VLOOKUP(G60,Tabelle2!$B$3:$C$38,2,) ->  | I60: EuroGoodies | J60: Klagenfurt a.W. | K60: AT | L60: =VLOOKUP(K60,Tabelle2!$B$3:$C$38,2,) ->  | M60: EuroAcres | N60: 336 | O60: 5495 | P60: 5695 | Q60: 880
B61: 60 | C61: 33 | D61: 2024-07-08 | E61: Bagger | F61: Graz | G61: AT | H61: =VLOOKUP(G61,Tabelle2!$B$3:$C$38,2,) ->  | I61: FCP | J61: Livorno | K61: IT | L61: =VLOOKUP(K61,Tabelle2!$B$3:$C$38,2,) ->  | M61: SALSRL | N61: 779 | O61: 24889 | P61: 23780 | Q61: 0
B62: 61 | C62: 30 | D62: 2024-07-08 | E62: Raupenbagger | F62: Strassburg | G62: FR | H62: =VLOOKUP(G62,Tabelle2!$B$3:$C$38,2,) ->  | I62: Kaarfor | J62: Travemünde | K62: DE | L62: =VLOOKUP(K62,Tabelle2!$B$3:$C$38,2,) ->  | M62: Marina | N62: 760 | O62: 25659 | P62: 21720 | Q62: 0
B63: 62 | C63: 31 | D63: 2024-07-08 | E63: Atlantisches Kabeljaufilet | F63: Travemünde | G63: DE | H63: =VLOOKUP(G63,Tabelle2!$B$3:$C$38,2,) ->  | I63: Marina | J63: Wien | K63: AT | L63: =VLOOKUP(K63,Tabelle2!$B$3:$C$38,2,) ->  | M63: EuroGoodies | N63: 1132 | O63: 26147 | P63: 16450 | Q63: 0
B64: 63 | C64: 35 | D64: 2024-07-09 | E64: Glasscheiben | F64: Sarajevo | G64: BIH | H64: =VLOOKUP(G64,Tabelle2!$B$3:$C$38,2,) ->  | I64: Belkan Loco | J64: Göteborg | K64: SE | L64: =VLOOKUP(K64,Tabelle2!$B$3:$C$38,2,) ->  | M64: AgroNord | N64: 2144 | O64: 600 | Q64: 800
B65: 64 | C65: 34 | D65: 2024-07-09 | E65: Computerprozessoren | F65: Livorno | G65: IT | H65: =VLOOKUP(G65,Tabelle2!$B$3:$C$38,2,) ->  | I65: SALSRL | J65: Sarajevo | K65: BIH | L65: =VLOOKUP(K65,Tabelle2!$B$3:$C$38,2,) ->  | M65: Balkan Loco | N65: 1383 | O65: 44610 | P65: 3854 | Q65: 0
B66: 65 | C66: 36 | D66: 2024-07-09 | E66: Zugmaschinen-Volvo | F66: Göteborg | G66: SE | H66: =VLOOKUP(G66,Tabelle2!$B$3:$C$38,2,) ->  | I66: VOLVO | J66: Göteborg | K66: SE | L66: =VLOOKUP(K66,Tabelle2!$B$3:$C$38,2,) ->  | M66: VPC | N66: 14 | O66: 142445 | P66: 14680 | Q66: 0
B67: 66 | C67: 38 | D67: 2024-07-10 | E67: Sand | F67: Graz | G67: AT | H67: =VLOOKUP(G67,Tabelle2!$B$3:$C$38,2,) ->  | I67: Steinbruch | J67: Istanbul | K67: TR | L67: =VLOOKUP(K67,Tabelle2!$B$3:$C$38,2,) ->  | M67: Baltrak Lojistik | N67: 1659 | O67: 53523 | P67: 47586 | Q67: 0
B68: 67 | C68: 37 | D68: 2024-07-10 | E68: Zugmaschinen-Volvo | F68: Göteborg | G68: SE | H68: =VLOOKUP(G68,Tabelle2!$B$3:$C$38,2,) ->  | I68: VOLVO | J68: Graz | K68: AT | L68: =VLOOKUP(K68,Tabelle2!$B$3:$C$38,2,) ->  | M68: FCP | N68: 1826 | O68: 60230 | P68: 14680 | Q68: 800
B69: 68 | C69: 39 | D69: 2024-07-12 | E69: Limonade | F69: Istanbul | G69: TR | H69: =VLOOKUP(G69,Tabelle2!$B$3:$C$38,2,) ->  | I69: Baltrak Lojistic | J69: Villa San Giovanni | K69: IT | L69: =VLOOKUP(K69,Tabelle2!$B$3:$C$38,2,) ->  | M69: Eolo Lines | N69: 1581 | O69: 49679 | P69: 23998 | Q69: 300
B70: 69 | C70: 40 | D70: 2024-07-12 | E70: Wassermelonen | F70: Villa San Giovanni | G70: IT | H70: =VLOOKUP(G70,Tabelle2!$B$3:$C$38,2,) ->  | I70: Eolo Lines | J70: Uppsala | K70: SE | L70: =VLOOKUP(K70,Tabelle2!$B$3:$C$38,2,) ->  | M70: Dekkar Trans | N70: 2965 | O70: 81534 | P70: 20170 | Q70: 0
B71: 70 | C71: 42 | D71: 2024-07-13 | E71: Gabelstapler | F71: Helsingborg | G71: SE | H71: =VLOOKUP(G71,Tabelle2!$B$3:$C$38,2,) ->  | I71: BHV | J71: Graz | K71: AT | L71: =VLOOKUP(K71,Tabelle2!$B$3:$C$38,2,) ->  | M71: Steinbruch | N71: 1307 | O71: 47695 | P71: 11230 | Q71: 400
B72: 71 | C72: 41 | D72: 2024-07-13 | E72: Gerüstmaterial | F72: Uppsala | G72: SE | H72: =VLOOKUP(G72,Tabelle2!$B$3:$C$38,2,) ->  | I72: Drekkar Trans | J72: Helsingborg | K72: SE | L72: =VLOOKUP(K72,Tabelle2!$B$3:$C$38,2,) ->  | M72: BHV | N72: 594 | O72: 16201 | P72: 22126 | Q72: 0
B73: 72 | C73: 43 | D73: 2024-07-13 | E73: Bremsflüssigkeit | F73: Graz | G73: AT | H73: =VLOOKUP(G73,Tabelle2!$B$3:$C$38,2,) ->  | I73: FCP | J73: Göteborg | K73: SE | L73: =VLOOKUP(K73,Tabelle2!$B$3:$C$38,2,) ->  | M73: VOLVO | N73: 1403 | O73: 34138 | P73: 5316 | Q73: 0
B74: 73 | C74: 44 | D74: 2024-07-13 | E74: Zugmaschinen-Volvo | F74: Göteborg | G74: SE | H74: =VLOOKUP(G74,Tabelle2!$B$3:$C$38,2,) ->  | I74: VOLVO | J74: Göteborg | K74: SE | L74: =VLOOKUP(K74,Tabelle2!$B$3:$C$38,2,) ->  | M74: VPC | N74: 15 | O74: 158388 | P74: 14680 | Q74: 0
B75: 74 | C75: 48 | D75: 2024-07-14 | E75: Baumstämme | F75: St.Petersburg | G75: RU | H75: =VLOOKUP(G75,Tabelle2!$B$3:$C$38,2,) ->  | I75: Baltomorsk | J75: Helsinki | K75: FI | L75: =VLOOKUP(K75,Tabelle2!$B$3:$C$38,2,) ->  | M75: AeroBaltika | N75: 554 | O75: 15298 | P75: 22740 | Q75: 780
B76: 75 | C76: 46 | D76: 2024-07-14 | E76: Scania - Zugmaschinen | F76: Algeciras | G76: ES | H76: =VLOOKUP(G76,Tabelle2!$B$3:$C$38,2,) ->  | I76: CESTA S.L | J76: Graz | K76: AT | L76: =VLOOKUP(K76,Tabelle2!$B$3:$C$38,2,) ->  | M76: Tree-Et | N76: 3026 | O76: 137238 | P76: 14590 | Q76: 0
B77: 76 | C77: 47 | D77: 2024-07-14 | E77: Autos | F77: Graz | G77: AT | H77: =VLOOKUP(G77,Tabelle2!$B$3:$C$38,2,) ->  | I77: FCP | J77: St.Petersburg | K77: RU | L77: =VLOOKUP(K77,Tabelle2!$B$3:$C$38,2,) ->  | M77: Baltomorsk | N77: 1995 | O77: 83894 | P77: 9010 | Q77: 0
B78: 77 | C78: 45 | D78: 2024-07-14 | E78: Zugmaschinen-Volvo | F78: Göteborg | G78: SE | H78: =VLOOKUP(G78,Tabelle2!$B$3:$C$38,2,) ->  | I78: VPC | J78: Algeciras | K78: ES | L78: =VLOOKUP(K78,Tabelle2!$B$3:$C$38,2,) ->  | M78: CESTA S.L | N78: 3402 | O78: 169514 | P78: 14680 | Q78: 400
B79: 78 | C79: 49 | D79: 2024-07-15 | E79: Dieselgeneratoren | F79: Helsinki | G79: FI | H79: =VLOOKUP(G79,Tabelle2!$B$3:$C$38,2,) ->  | I79: AeroBaltika | J79: Oslo | K79: NO | L79: =VLOOKUP(K79,Tabelle2!$B$3:$C$38,2,) ->  | M79: ContainerPort | N79: 856 | O79: 44738 | P79: 21516 | Q79: 0
B80: 79 | C80: 51 | D80: 2024-07-17 | E80: Hochspannungsleitungen | F80: Köln | G80: DE | H80: =VLOOKUP(G80,Tabelle2!$B$3:$C$38,2,) ->  | I80: ITCC | J80: Aberdeen | K80: GB | L80: =VLOOKUP(K80,Tabelle2!$B$3:$C$38,2,) ->  | M80: NBFC | N80: 1467 | O80: 52535 | P80: 21480 | Q80: 0
B81: 80 | C81: 50 | D81: 2024-07-17 | E81: Zugmaschinen-Volvo | F81: Oslo | G81: NO | H81: =VLOOKUP(G81,Tabelle2!$B$3:$C$38,2,) ->  | I81: RenarLogistik | J81: Köln | K81: DE | L81: =VLOOKUP(K81,Tabelle2!$B$3:$C$38,2,) ->  | M81: ITCC | N81: 1509 | O81: 67410 | P81: 14680 | Q81: 0
B82: 81 | C82: 54 | D82: 2024-07-19 | E82: Zugmaschinen-Volvo | F82: Berlin | G82: DE | H82: =VLOOKUP(G82,Tabelle2!$B$3:$C$38,2,) ->  | I82: NBFC | J82: Linz | K82: AT | L82: =VLOOKUP(K82,Tabelle2!$B$3:$C$38,2,) ->  | M82: ITCC | N82: 616 | O82: 33861 | P82: 14680 | Q82: 0
B83: 82 | C83: 52 | D83: 2024-07-19 | E83: Chlor | F83: Aberdeen | G83: GB | H83: =VLOOKUP(G83,Tabelle2!$B$3:$C$38,2,) ->  | I83: NSChemicals | J83: Malmö | K83: SE | L83: =VLOOKUP(K83,Tabelle2!$B$3:$C$38,2,) ->  | M83: NBFC | N83: 1009 | O83: 39011 | P83: 18270 | Q83: 400
B84: 83 | C84: 53 | D84: 2024-07-19 | E84: Wasserfreies Amoniak | F84: Malmö | G84: SE | H84: =VLOOKUP(G84,Tabelle2!$B$3:$C$38,2,) ->  | I84: NSChemicals | J84: Berlin | K84: DE | L84: =VLOOKUP(K84,Tabelle2!$B$3:$C$38,2,) ->  | M84: NBFC | N84: 434 | O84: 16891 | P84: 18980 | Q84: 0
B85: 84 | C85: 56 | D85: 2024-07-21 | E85: Kleintransporter | F85: Le Mans | G85: FR | H85: =VLOOKUP(G85,Tabelle2!$B$3:$C$38,2,) ->  | I85: BHV | J85: Rennes | K85: FR | L85: =VLOOKUP(K85,Tabelle2!$B$3:$C$38,2,) ->  | M85: Globeur | N85: 155 | O85: 5965 | P85: 840 | Q85: 400
B86: 85 | C86: 58 | D86: 2024-07-21 | E86: Wäschetrockner | F86: Bukarest | G86: RO | H86: =VLOOKUP(G86,Tabelle2!$B$3:$C$38,2,) ->  | I86: Brawen | J86: Graz | K86: AT | L86: =VLOOKUP(K86,Tabelle2!$B$3:$C$38,2,) ->  | M86: RTLog | N86: 1155 | O86: 43440 | P86: 13256 | Q86: 360
B87: 86 | C87: 57 | D87: 2024-07-21 | E87: Drehgestell | F87: Rennes | G87: FR | H87: =VLOOKUP(G87,Tabelle2!$B$3:$C$38,2,) ->  | I87: Globeur | J87: Bukarest | K87: RO | L87: =VLOOKUP(K87,Tabelle2!$B$3:$C$38,2,) ->  | M87: Brawen | N87: 2750 | O87: 123114 | P87: 20740 | Q87: 0
B88: 87 | C88: 55 | D88: 2024-07-21 | E88: Dünger | F88: Linz | G88: AT | H88: =VLOOKUP(G88,Tabelle2!$B$3:$C$38,2,) ->  | I88: RTLog | J88: Le Mans | K88: FR | L88: =VLOOKUP(K88,Tabelle2!$B$3:$C$38,2,) ->  | M88: WilnetTransport | N88: 2036 | O88: 41151 | P88: 20282 | Q88: 0
B89: 88 | C89: 60 | D89: 2024-07-22 | E89: Diesel | F89: Graz | G89: AT | H89: =VLOOKUP(G89,Tabelle2!$B$3:$C$38,2,) ->  | I89: FCP | J89: Stuttgart | K89: DE | L89: =VLOOKUP(K89,Tabelle2!$B$3:$C$38,2,) ->  | M89: BCP | N89: 624 | O89: 31553 | P89: 23800 | Q89: 0
B90: 89 | C90: 59 | D90: 2024-07-22 | E90: Drehgestell | F90: Graz | G90: AT | H90: =VLOOKUP(G90,Tabelle2!$B$3:$C$38,2,) ->  | I90: Steinbruch | J90: Luxemburg | K90: LU | L90: =VLOOKUP(K90,Tabelle2!$B$3:$C$38,2,) ->  | M90: ITCC | N90: 999 | O90: 45346 | P90: 20740 | Q90: 0
B91: 90 | C91: 63 | D91: 2024-07-23 | E91: Aluminiumbarren | F91: Wien | G91: AT | H91: =VLOOKUP(G91,Tabelle2!$B$3:$C$38,2,) ->  | I91: CNP | J91: Linz | K91: AT | L91: =VLOOKUP(K91,Tabelle2!$B$3:$C$38,2,) ->  | M91: DomDepo | N91: 173 | O91: 7771 | P91: 24157 | Q91: 800
B92: 91 | C92: 64 | D92: 2024-07-23 | E92: Acetylen | F92: Linz | G92: AT | H92: =VLOOKUP(G92,Tabelle2!$B$3:$C$38,2,) ->  | I92: DomDepo | J92: Salzburg | K92: AT | L92: =VLOOKUP(K92,Tabelle2!$B$3:$C$38,2,) ->  | M92: Steinbruch | N92: 409 | O92: 3890 | P92: 4800 | Q92: 0
B93: 92 | C93: 67 | D93: 2024-07-23 | E93: Äpfel | F93: Klagenfurt a.W. | G93: AT | H93: =VLOOKUP(G93,Tabelle2!$B$3:$C$38,2,) ->  | I93: Euroacres | J93: Graz | K93: AT | L93: =VLOOKUP(K93,Tabelle2!$B$3:$C$38,2,) ->  | M93: EuroAcres | N93: 369 | O93: 7694 | P93: 18336 | Q93: 8600
B94: 93 | C94: 66 | D94: 2024-07-23 | E94: Atlantisches Kabeljaufilet | F94: Innsbruck | G94: AT | H94: =VLOOKUP(G94,Tabelle2!$B$3:$C$38,2,) ->  | I94: EuroGoodies | J94: Klagenfurt a.W. | K94: AT | L94: =VLOOKUP(K94,Tabelle2!$B$3:$C$38,2,) ->  | M94: EuroAcres | N94: 341 | O94: 14984 | P94: 16450 | Q94: 0
B95: 94 | C95: 62 | D95: 2024-07-23 | E95: Bagger | F95: Graz | G95: AT | H95: =VLOOKUP(G95,Tabelle2!$B$3:$C$38,2,) ->  | I95: FCP | J95: Wien | K95: AT | L95: =VLOOKUP(K95,Tabelle2!$B$3:$C$38,2,) ->  | M95: CNP | N95: 179 | O95: 7948 | P95: 23780 | Q95: 760
B96: 95 | C96: 65 | D96: 2024-07-23 | E96: Dieselgeneratoren | F96: Salzburg | G96: AT | H96: =VLOOKUP(G96,Tabelle2!$B$3:$C$38,2,) ->  | I96: Steinbruch | J96: Innsbruck | K96: AT | L96: =VLOOKUP(K96,Tabelle2!$B$3:$C$38,2,) ->  | M96: EuroGoodies | N96: 163 | O96: 11166 | P96: 21516 | Q96: 0
B97: 96 | C97: 68 | D97: 2024-07-23 | E97: Granitblöcke | F97: Graz | G97: AT | H97: =VLOOKUP(G97,Tabelle2!$B$3:$C$38,2,) ->  | I97: Steinbruch | J97: Wien | K97: AT | L97: =VLOOKUP(K97,Tabelle2!$B$3:$C$38,2,) ->  | M97: EuroAcres | N97: 289 | O97: 2739 | P97: 23000 | Q97: 0
B98: 97 | C98: 61 | D98: 2024-07-23 | E98: Zugmaschinen-Volvo | F98: Stuttgart | G98: DE | H98: =VLOOKUP(G98,Tabelle2!$B$3:$C$38,2,) ->  | I98: Stokes | J98: Graz | K98: AT | L98: =VLOOKUP(K98,Tabelle2!$B$3:$C$38,2,) ->  | M98: FCP | N98: 741 | O98: 33500 | P98: 14680 | Q98: 0
B99: 98 | C99: 69 | D99: 2024-07-24 | E99: Computerprozessoren | F99: Wien | G99: AT | H99: =VLOOKUP(G99,Tabelle2!$B$3:$C$38,2,) ->  | I99: EuroAcres | J99: Linz | K99: AT | L99: =VLOOKUP(K99,Tabelle2!$B$3:$C$38,2,) ->  | M99: ITCC | N99: 255 | O99: 11323 | P99: 3854 | Q99: 800
B100: 99 | C100: 74 | D100: 2024-07-24 | E100: Fertigtreppen (Beton | F100: Graz | G100: AT | H100: =VLOOKUP(G100,Tabelle2!$B$3:$C$38,2,) ->  | I100: FCP | J100: Wien | K100: AT | L100: =VLOOKUP(K100,Tabelle2!$B$3:$C$38,2,) ->  | M100: NSOil | N100: 162 | O100: 6162 | P100: 21565 | Q100: 1600
B101: 100 | C101: 70 | D101: 2024-07-24 | E101: Dynamit | F101: Linz | G101: AT | H101: =VLOOKUP(G101,Tabelle2!$B$3:$C$38,2,) ->  | I101: ITCC | J101: Salzburg | K101: AT | L101: =VLOOKUP(K101,Tabelle2!$B$3:$C$38,2,) ->  | M101: Renat | N101: 105 | O101: 8219 | P101: 17160 | Q101: 400
B102: 101 | C102: 76 | D102: 2024-07-24 | E102: Grosse Eisenrohre | F102: Linz | G102: AT | H102: =VLOOKUP(G102,Tabelle2!$B$3:$C$38,2,) ->  | I102: ITCC | J102: Salzburg | K102: AT | L102: =VLOOKUP(K102,Tabelle2!$B$3:$C$38,2,) ->  | M102: SanBuilders | N102: 241 | O102: 5727 | P102: 22840 | Q102: 0
B103: 102 | C103: 73 | D103: 2024-07-24 | E103: Feuerwerk | F103: Klagenfurt a.W. | G103: AT | H103: =VLOOKUP(G103,Tabelle2!$B$3:$C$38,2,) ->  | I103: Kathode | J103: Graz | K103: AT | L103: =VLOOKUP(K103,Tabelle2!$B$3:$C$38,2,) ->  | M103: FCP | N103: 127 | O103: 8866 | P103: 9900 | Q103: 200
B104: 103 | C104: 75 | D104: 2024-07-24 | E104: Benzin | F104: Wien | G104: AT | H104: =VLOOKUP(G104,Tabelle2!$B$3:$C$38,2,) ->  | I104: NSOil | J104: Linz | K104: AT | L104: =VLOOKUP(K104,Tabelle2!$B$3:$C$38,2,) ->  | M104: ITCC | N104: 212 | O104: 12679 | P104: 21750 | Q104: 0
B105: 104 | C105: 71 | D105: 2024-07-24 | E105: Chemisches Sorptionsmittel | F105: Salzburg | G105: AT | H105: =VLOOKUP(G105,Tabelle2!$B$3:$C$38,2,) ->  | I105: Renat | J105: Innsbruck | K105: AT | L105: =VLOOKUP(K105,Tabelle2!$B$3:$C$38,2,) ->  | M105: RTLog | N105: 253 | O105: 5890 | P105: 8752 | Q105: 0
B106: 105 | C106: 72 | D106: 2024-07-24 | E106: Autos | F106: Innsbruck | G106: AT | H106: =VLOOKUP(G106,Tabelle2!$B$3:$C$38,2,) ->  | I106: RTLog | J106: Klagenfurt a.W. | K106: AT | L106: =VLOOKUP(K106,Tabelle2!$B$3:$C$38,2,) ->  | M106: Kathode | N106: 447 | O106: 19878 | P106: 7000 | Q106: 0
B107: 106 | C107: 77 | D107: 2024-07-24 | E107: Bagger | F107: Salzburg | G107: AT | H107: =VLOOKUP(G107,Tabelle2!$B$3:$C$38,2,) ->  | I107: SanBuilders | J107: Innsbruck | K107: AT | L107: =VLOOKUP(K107,Tabelle2!$B$3:$C$38,2,) ->  | M107: Trameri | N107: 296 | O107: 9683 | P107: 23780 | Q107: 0
B108: 107 | C108: 78 | D108: 2024-07-24 | E108: Heiße Chemikalien | F108: Innsbruck | G108: AT | H108: =VLOOKUP(G108,Tabelle2!$B$3:$C$38,2,) ->  | I108: Trameri | J108: Klagenfurt a.W. | K108: AT | L108: =VLOOKUP(K108,Tabelle2!$B$3:$C$38,2,) ->  | M108: Sellplan | N108: 465 | O108: 23139 | P108: 19800 | Q108: 460
B109: 108 | C109: 85 | D109: 2024-07-26 | E109: Luxus-SUV´s | F109: Graz | G109: AT | H109: =VLOOKUP(G109,Tabelle2!$B$3:$C$38,2,) ->  | I109: LKWLog | J109: Wien | K109: AT | L109: =VLOOKUP(K109,Tabelle2!$B$3:$C$38,2,) ->  | M109: Stokes | N109: 150 | O109: 9819 | P109: 11100 | Q109: 0
B110: 109 | C110: 82 | D110: 2024-07-26 | E110: Kaminsysteme | F110: Linz | G110: AT | H110: =VLOOKUP(G110,Tabelle2!$B$3:$C$38,2,) ->  | I110: PoSped | J110: Salzburg | K110: AT | L110: =VLOOKUP(K110,Tabelle2!$B$3:$C$38,2,) ->  | M110: SanBuilders | N110: 212 | O110: 6015 | P110: 18450 | Q110: 0
B111: 110 | C111: 83 | D111: 2024-07-26 | E111: Quecksilberchlorid | F111: Salzburg | G111: AT | H111: =VLOOKUP(G111,Tabelle2!$B$3:$C$38,2,) ->  | I111: SanBuilders | J111: Klagenfurt a.W. | K111: AT | L111: =VLOOKUP(K111,Tabelle2!$B$3:$C$38,2,) ->  | M111: Tradeaux | N111: 333 | O111: 11852 | P111: 15660 | Q111: 0
B112: 111 | C112: 79 | D112: 2024-07-26 | E112: Erz | F112: Klagenfurt a.W. | G112: AT | H112: =VLOOKUP(G112,Tabelle2!$B$3:$C$38,2,) ->  | I112: Sellplan | J112: Graz | K112: AT | L112: =VLOOKUP(K112,Tabelle2!$B$3:$C$38,2,) ->  | M112: Steinbruch | N112: 61 | O112: 2738 | P112: 22200 | Q112: 0
B113: 112 | C113: 81 | D113: 2024-07-26 | E113: Kaliumhydroxid | F113: Wien | G113: AT | H113: =VLOOKUP(G113,Tabelle2!$B$3:$C$38,2,) ->  | I113: Sellplan | J113: Linz | K113: AT | L113: =VLOOKUP(K113,Tabelle2!$B$3:$C$38,2,) ->  | M113: PoSped | N113: 226 | O113: 10991 | P113: 19800 | Q113: 400
B114: 113 | C114: 80 | D114: 2024-07-26 | E114: Mamorplatte | F114: Graz | G114: AT | H114: =VLOOKUP(G114,Tabelle2!$B$3:$C$38,2,) ->  | I114: Steinbruch | J114: Wien | K114: AT | L114: =VLOOKUP(K114,Tabelle2!$B$3:$C$38,2,) ->  | M114: Sellplan | N114: 160 | O114: 5754 | P114: 23500 | Q114: 0
B115: 114 | C115: 84 | D115: 2024-07-26 | E115: Getränke | F115: Klagenfurt a.W. | G115: AT | H115: =VLOOKUP(G115,Tabelle2!$B$3:$C$38,2,) ->  | I115: Tradeaux | J115: Graz | K115: AT | L115: =VLOOKUP(K115,Tabelle2!$B$3:$C$38,2,) ->  | M115: LKWLog | N115: 110 | O115: 4480 | P115: 23526 | Q115: 0
B116: 115 | C116: 91 | D116: 2024-07-27 | E116: Hochdruck-Schieberventile | F116: Innsbruck | G116: AT | H116: =VLOOKUP(G116,Tabelle2!$B$3:$C$38,2,) ->  | I116: EuroGoodies | J116: Klagenfurt a.W. | K116: AT | L116: =VLOOKUP(K116,Tabelle2!$B$3:$C$38,2,) ->  | M116: Trameri | N116: 646 | O116: 15050 | P116: 19077 | Q116: 0
B117: 116 | C117: 90 | D117: 2024-07-27 | E117: Alkoholfreies Bier | F117: Zürich | G117: CH | H117: =VLOOKUP(G117,Tabelle2!$B$3:$C$38,2,) ->  | I117: Kathode | J117: Innsbruck | K117: AT | L117: =VLOOKUP(K117,Tabelle2!$B$3:$C$38,2,) ->  | M117: EuroGoodies | N117: 310 | O117: 11136 | P117: 22156 | Q117: 400
B118: 117 | C118: 87 | D118: 2024-07-27 | E118: Computerprozessoren | F118: Linz | G118: AT | H118: =VLOOKUP(G118,Tabelle2!$B$3:$C$38,2,) ->  | I118: PoSped | J118: Salzburg | K118: AT | L118: =VLOOKUP(K118,Tabelle2!$B$3:$C$38,2,) ->  | M118: Shuttle Cola | N118: 171 | O118: 8864 | P118: 3854 | Q118: 0
B119: 118 | C119: 88 | D119: 2024-07-27 | E119: Bagger | F119: Salzburg | G119: AT | H119: =VLOOKUP(G119,Tabelle2!$B$3:$C$38,2,) ->  | I119: Shuttle Cola | J119: Innsbruck | K119: AT | L119: =VLOOKUP(K119,Tabelle2!$B$3:$C$38,2,) ->  | M119: Steinbruch | N119: 226 | O119: 10007 | P119: 23780 | Q119: 0
B120: 119 | C120: 89 | D120: 2024-07-27 | E120: Beton-Bodenplatten | F120: Innsbruck | G120: AT | H120: =VLOOKUP(G120,Tabelle2!$B$3:$C$38,2,) ->  | I120: Steinbruch | J120: Zürich | K120: AT | L120: =VLOOKUP(K120,Tabelle2!$B$3:$C$38,2,) ->  | M120: Stokes | N120: 353 | O120: 9260 | P120: 19188 | Q120: 0
B121: 120 | C121: 86 | D121: 2024-07-27 | E121: Jacht - Queen V39 | F121: Wien | G121: AT | H121: =VLOOKUP(G121,Tabelle2!$B$3:$C$38,2,) ->  | I121: Stokes | J121: Linz | K121: AT | L121: =VLOOKUP(K121,Tabelle2!$B$3:$C$38,2,) ->  | M121: RTLog | N121: 196 | O121: 13511 | P121: 9900 | Q121: 0
B122: 121 | C122: 95 | D122: 2024-07-28 | E122: Geräucherte Sprotten | F122: Wien | G122: AT | H122: =VLOOKUP(G122,Tabelle2!$B$3:$C$38,2,) ->  | I122: EuroAcres | J122: Brünn | K122: CZ | L122: =VLOOKUP(K122,Tabelle2!$B$3:$C$38,2,) ->  | M122: SanBuilders | N122: 138 | O122: 5936 | P122: 17572 | Q122: 800
B123: 122 | C123: 97 | D123: 2024-07-28 | E123: Gesteinsmehl | F123: Wien | G123: AT | H123: =VLOOKUP(G123,Tabelle2!$B$3:$C$38,2,) ->  | I123: EuroAcres | J123: Bratislava | L123: =VLOOKUP(K123,Tabelle2!$B$3:$C$38,2,) ->  | M123: WGCC | N123: 136 | O123: 2725 | P123: 22100 | Q123: 400
B124: 123 | C124: 94 | D124: 2024-07-28 | E124: Geräucherter Aal | F124: Wien | G124: AT | H124: =VLOOKUP(G124,Tabelle2!$B$3:$C$38,2,) ->  | I124: EuroGoodies | J124: Wien | L124: =VLOOKUP(K124,Tabelle2!$B$3:$C$38,2,) ->  | M124: EuroAcres | N124: 161 | O124: 106280 | P124: 11481 | Q124: 800
B125: 124 | C125: 93 | D125: 2024-07-28 | E125: Kleintransporter | F125: Graz | G125: AT | H125: =VLOOKUP(G125,Tabelle2!$B$3:$C$38,2,) ->  | I125: FCP | J125: Wien | L125: =VLOOKUP(K125,Tabelle2!$B$3:$C$38,2,) ->  | M125: EuroGoodies | N125: 147 | O125: 7947 | P125: 6150 | Q125: 0
B126: 125 | C126: 100 | D126: 2024-07-28 | E126: Gabelstapler | F126: Budapest | G126: HU | H126: =VLOOKUP(G126,Tabelle2!$B$3:$C$38,2,) ->  | I126: Kaarfor | J126: Graz | L126: =VLOOKUP(K126,Tabelle2!$B$3:$C$38,2,) ->  | M126: Tree-Et | N126: 478 | O126: 15377 | P126: 11230 | Q126: 0
B127: 126 | C127: 99 | D127: 2024-07-28 | E127: Gerüstmaterial | F127: Wien | G127: AT | H127: =VLOOKUP(G127,Tabelle2!$B$3:$C$38,2,) ->  | I127: NSOil | J127: Budapest | L127: =VLOOKUP(K127,Tabelle2!$B$3:$C$38,2,) ->  | M127: Trameri | N127: 466 | O127: 10077 | P127: 21456 | Q127: 400
B128: 127 | C128: 96 | D128: 2024-07-28 | E128: Leberwurst | F128: Brünn | G128: CZ | H128: =VLOOKUP(G128,Tabelle2!$B$3:$C$38,2,) ->  | I128: SanBuilders | J128: Wien | L128: =VLOOKUP(K128,Tabelle2!$B$3:$C$38,2,) ->  | M128: EuroAcres | N128: 120 | O128: 5495 | P128: 17411 | Q128: 0
B129: 128 | C129: 92 | D129: 2024-07-28 | E129: Salzsäure | F129: Klagenfurt a.W. | G129: AT | H129: =VLOOKUP(G129,Tabelle2!$B$3:$C$38,2,) ->  | I129: Tradeaux | J129: Graz | L129: =VLOOKUP(K129,Tabelle2!$B$3:$C$38,2,) ->  | M129: FCP | N129: 105 | O129: 7728 | P129: 21780 | Q129: 0
B130: 129 | C130: 101 | D130: 2024-07-28 | E130: Baumstämme | F130: Graz | G130: AT | H130: =VLOOKUP(G130,Tabelle2!$B$3:$C$38,2,) ->  | I130: Tree-Et | J130: Wien | L130: =VLOOKUP(K130,Tabelle2!$B$3:$C$38,2,) ->  | M130: NSOil | N130: 173 | O130: 5167 | P130: 22740 | Q130: 0
B131: 130 | C131: 98 | D131: 2024-07-28 | E131: Kleidung | F131: Bratislava | G131: SK | H131: =VLOOKUP(G131,Tabelle2!$B$3:$C$38,2,) ->  | I131: WGCC | J131: Wien | L131: =VLOOKUP(K131,Tabelle2!$B$3:$C$38,2,) ->  | M131: NSOil | N131: 318 | O131: 4172 | P131: 18720 | Q131: 0
B132: 131 | C132: 104 | D132: 2024-07-29 | E132: Graphitfett | F132: Maribor | G132: SLO | H132: =VLOOKUP(G132,Tabelle2!$B$3:$C$38,2,) ->  | I132: Balkan Loco | J132: Graz | L132: =VLOOKUP(K132,Tabelle2!$B$3:$C$38,2,) ->  | M132: Steinbruch | N132: 78 | O132: 4910 | P132: 16909 | Q132: 160
B133: 132 | C133: 103 | D133: 2024-07-29 | E133: Desinfektionsmittel | F133: Graz | G133: AT | H133: =VLOOKUP(G133,Tabelle2!$B$3:$C$38,2,) ->  | I133: EuroAcres | J133: Maribor | L133: =VLOOKUP(K133,Tabelle2!$B$3:$C$38,2,) ->  | M133: Balkan Loco | N133: 423 | O133: 4250 | P133: 16820 | Q133: 0
B134: 133 | C134: 102 | D134: 2024-07-29 | E134: Spannplatten | F134: Graz | G134: AT | H134: =VLOOKUP(G134,Tabelle2!$B$3:$C$38,2,) ->  | I134: Steinbruch | J134: Graz | L134: =VLOOKUP(K134,Tabelle2!$B$3:$C$38,2,) ->  | M134: EuroAcres | N134: 529 | O134: 109589 | P134: 21599 | Q134: 400
B135: 134 | C135: 105 | D135: 2024-07-29 | E135: Gabelstapler | F135: Graz | G135: AT | H135: =VLOOKUP(G135,Tabelle2!$B$3:$C$38,2,) ->  | I135: Steinbruch | J135: Graz | L135: =VLOOKUP(K135,Tabelle2!$B$3:$C$38,2,) ->  | M135: Steinbruch | N135: 50 | O135: 129244 | P135: 11230 | Q135: 0
B136: 135 | C136: 106 | D136: 2024-07-29 | E136: Gesteinsmehl | F136: Graz | G136: AT | H136: =VLOOKUP(G136,Tabelle2!$B$3:$C$38,2,) ->  | I136: Steinbruch | J136: Nürnberg | L136: =VLOOKUP(K136,Tabelle2!$B$3:$C$38,2,) ->  | M136: Kathode | N136: 696 | O136: 7399 | P136: 22100 | Q136: 1000
B137: 136 | C137: 107 | D137: 2024-07-30 | E137: Acetylen | F137: Nürnberg | G137: DE | H137: =VLOOKUP(G137,Tabelle2!$B$3:$C$38,2,) ->  | I137: Kathode | J137: Nürnberg | L137: =VLOOKUP(K137,Tabelle2!$B$3:$C$38,2,) ->  | M137: SanBuilders | N137: 11 | O137: 126031 | P137: 9600 | Q137: 0
B138: 137 | C138: 108 | D138: 2024-07-30 | E138: Außenfliesen | F138: Nürnberg | G138: DE | H138: =VLOOKUP(G138,Tabelle2!$B$3:$C$38,2,) ->  | I138: SanBuilders | J138: Salzburg | L138: =VLOOKUP(K138,Tabelle2!$B$3:$C$38,2,) ->  | M138: Sellplan | N138: 392 | O138: 10492 | P138: 20579 | Q138: 0
B139: 138 | C139: 109 | D139: 2024-07-30 | E139: Atlantisches Kabeljaufilet | F139: Salzburg | G139: AT | H139: =VLOOKUP(G139,Tabelle2!$B$3:$C$38,2,) ->  | I139: Sellplan | J139: Salzburg | L139: =VLOOKUP(K139,Tabelle2!$B$3:$C$38,2,) ->  | M139: Tree-Et | N139: 267 | O139: 103817 | P139: 16450 | Q139: 0
B140: 139 | C140: 112 | D140: 2024-07-30 | E140: Jacht - Queen V39 | F140: Triest | G140: IT | H140: =VLOOKUP(G140,Tabelle2!$B$3:$C$38,2,) ->  | I140: Terminal Container | J140: Ljubljana | L140: =VLOOKUP(K140,Tabelle2!$B$3:$C$38,2,) ->  | M140: Balkan Loco | N140: 208 | O140: 12750 | P140: 9900 | Q140: 0
B141: 140 | C141: 110 | D141: 2024-07-30 | E141: Bauholz | F141: Salzburg | G141: AT | H141: =VLOOKUP(G141,Tabelle2!$B$3:$C$38,2,) ->  | I141: Tree-Et | J141: Klagenfurt a.W. | L141: =VLOOKUP(K141,Tabelle2!$B$3:$C$38,2,) ->  | M141: Tree-Et | N141: 278 | O141: 8436 | P141: 17520 | Q141: 0
B142: 141 | C142: 111 | D142: 2024-07-30 | E142: Gabelstapler | F142: Klagenfurt a.W. | G142: AT | H142: =VLOOKUP(G142,Tabelle2!$B$3:$C$38,2,) ->  | I142: Tree-Et | J142: Triest | L142: =VLOOKUP(K142,Tabelle2!$B$3:$C$38,2,) ->  | M142: Terminal Container | N142: 345 | O142: 16070 | P142: 11230 | Q142: 0
B143: 142 | C143: 113 | D143: 2024-07-31 | E143: Kugelventile | F143: Ljubiljana | G143: SLO | H143: =VLOOKUP(G143,Tabelle2!$B$3:$C$38,2,) ->  | I143: AI Automotive | J143: Salzburg | L143: =VLOOKUP(K143,Tabelle2!$B$3:$C$38,2,) ->  | M143: RTLog | N143: 366 | O143: 11629 | P143: 22173 | Q143: 360
B144: 143 | C144: 115 | D144: 2024-07-31 | E144: Dieselgeneratoren | F144: Salzburg | G144: AT | H144: =VLOOKUP(G144,Tabelle2!$B$3:$C$38,2,) ->  | I144: Renat | J144: Salzburg | L144: =VLOOKUP(K144,Tabelle2!$B$3:$C$38,2,) ->  | M144: Tree-Et | N144: 296 | O144: 150570 | P144: 21516 | Q144: 0
B145: 144 | C145: 114 | D145: 2024-07-31 | E145: Benzin | F145: Salzburg | G145: AT | H145: =VLOOKUP(G145,Tabelle2!$B$3:$C$38,2,) ->  | I145: RTLog | J145: Salzburg | L145: =VLOOKUP(K145,Tabelle2!$B$3:$C$38,2,) ->  | M145: Renat | N145: 61 | O145: 178083 | P145: 21750 | Q145: 0
B146: 145 | C146: 116 | D146: 2024-07-31 | E146: Zugmaschinen-Volvo | F146: Salzburg | G146: AT | H146: =VLOOKUP(G146,Tabelle2!$B$3:$C$38,2,) ->  | I146: Tree-Et | J146: Klagenfurt a.W. | L146: =VLOOKUP(K146,Tabelle2!$B$3:$C$38,2,) ->  | M146: EuroAcres | N146: 378 | O146: 17205 | P146: 14680 | Q146: 720
B147: 146 | C147: 1 | D147: 2024-08-03 | E147: Lebende Schweine | F147: Klagenfurt a.W. | G147: AT | H147: =VLOOKUP(G147,Tabelle2!$B$3:$C$38,2,) ->  | I147: Euroacres | J147: Salzburg | L147: =VLOOKUP(K147,Tabelle2!$B$3:$C$38,2,) ->  | M147: SanBuilders | N147: 254 | O147: 5812 | P147: 6000 | Q147: 2760
B148: 147 | C148: 4 | D148: 2024-08-03 | E148: Arbeitskleidung | F148: Venedig | G148: IT | H148: =VLOOKUP(G148,Tabelle2!$B$3:$C$38,2,) ->  | I148: EuroGoodies | J148: Ljubljana | L148: =VLOOKUP(K148,Tabelle2!$B$3:$C$38,2,) ->  | M148: ITCC | N148: 427 | O148: 12046 | P148: 16454 | Q148: 0
B149: 148 | C149: 3 | D149: 2024-08-03 | E149: Dachfenster | F149: Ljubiljana | G149: SLO | H149: =VLOOKUP(G149,Tabelle2!$B$3:$C$38,2,) ->  | I149: ITCC | J149: Venedig | L149: =VLOOKUP(K149,Tabelle2!$B$3:$C$38,2,) ->  | M149: EuroGoodies | N149: 397 | O149: 13876 | P149: 5273 | Q149: 0
B150: 149 | C150: 5 | D150: 2024-08-03 | E150: Eisenrohre | F150: Ljubiljana | G150: SLO | H150: =VLOOKUP(G150,Tabelle2!$B$3:$C$38,2,) ->  | I150: ITCC | J150: Klagenfurt a.W. | L150: =VLOOKUP(K150,Tabelle2!$B$3:$C$38,2,) ->  | M150: Trameri | N150: 190 | O150: 8439 | P150: 24380 | Q150: 0
B151: 150 | C151: 2 | D151: 2024-08-03 | E151: Atlantisches Kabeljaufilet | F151: Salzburg | G151: AT | H151: =VLOOKUP(G151,Tabelle2!$B$3:$C$38,2,) ->  | I151: Sellplan | J151: Ljubljana | L151: =VLOOKUP(K151,Tabelle2!$B$3:$C$38,2,) ->  | M151: ITCC | N151: 260 | O151: 10914 | P151: 16450 | Q151: 0
B152: 151 | C152: 7 | D152: 2024-08-03 | E152: Altkunststoff | F152: Salzburg | G152: AT | H152: =VLOOKUP(G152,Tabelle2!$B$3:$C$38,2,) ->  | I152: Sellplan | J152: Linz | L152: =VLOOKUP(K152,Tabelle2!$B$3:$C$38,2,) ->  | M152: PoSped | N152: 222 | O152: 3642 | P152: 9672 | Q152: 0
B153: 152 | C153: 6 | D153: 2024-08-03 | E153: Explosivstoffe | F153: Klagenfurt a.W. | G153: AT | H153: =VLOOKUP(G153,Tabelle2!$B$3:$C$38,2,) ->  | I153: Trameri | J153: Salzburg | L153: =VLOOKUP(K153,Tabelle2!$B$3:$C$38,2,) ->  | M153: Sellplan | N153: 385 | O153: 13707 | P153: 11680 | Q153: 0
B154: 153 | C154: 13 | D154: 2024-08-04 | E154: Dachziegel | F154: Verona | G154: IT | H154: =VLOOKUP(G154,Tabelle2!$B$3:$C$38,2,) ->  | I154: BCP | J154: Stuttgart | L154: =VLOOKUP(K154,Tabelle2!$B$3:$C$38,2,) ->  | M154: FLE | N154: 788 | O154: 19859 | P154: 20364 | Q154: 0
B155: 154 | C155: 9 | D155: 2024-08-04 | E155: LKW-Batterien | F155: Nürnberg | G155: DE | H155: =VLOOKUP(G155,Tabelle2!$B$3:$C$38,2,) ->  | I155: CNP | J155: Salzburg | L155: =VLOOKUP(K155,Tabelle2!$B$3:$C$38,2,) ->  | M155: Renat | N155: 338 | O155: 10282 | P155: 15976 | Q155: 0
B156: 155 | C156: 11 | D156: 2024-08-04 | E156: Motorräder | F156: Nürnberg | G156: DE | H156: =VLOOKUP(G156,Tabelle2!$B$3:$C$38,2,) ->  | I156: DFH | J156: Innsbruck | L156: =VLOOKUP(K156,Tabelle2!$B$3:$C$38,2,) ->  | M156: RTLog | N156: 401 | O156: 18199 | P156: 15048 | Q156: 0
B157: 156 | C157: 14 | D157: 2024-08-04 | E157: Ahornsirup | F157: Stuttgart | G157: DE | H157: =VLOOKUP(G157,Tabelle2!$B$3:$C$38,2,) ->  | I157: FLE | J157: Salzburg | L157: =VLOOKUP(K157,Tabelle2!$B$3:$C$38,2,) ->  | M157: Tree-Et | N157: 536 | O157: 11739 | P157: 17213 | Q157: 0
B158: 157 | C158: 8 | D158: 2024-08-04 | E158: Elektronik | F158: Llinz | G158: AT | H158: =VLOOKUP(G158,Tabelle2!$B$3:$C$38,2,) ->  | I158: PoSped | J158: Nürnberg | L158: =VLOOKUP(K158,Tabelle2!$B$3:$C$38,2,) ->  | M158: CNP | N158: 350 | O158: 14529 | P158: 8194 | Q158: 0
B159: 158 | C159: 10 | D159: 2024-08-04 | E159: Propan | F159: Salzburg | G159: AT | H159: =VLOOKUP(G159,Tabelle2!$B$3:$C$38,2,) ->  | I159: Renat | J159: Nürnberg | L159: =VLOOKUP(K159,Tabelle2!$B$3:$C$38,2,) ->  | M159: DFH | N159: 393 | O159: 14056 | P159: 19720 | Q159: 0
B160: 159 | C160: 12 | D160: 2024-08-04 | E160: Autos | F160: Innsbruck | G160: AT | H160: =VLOOKUP(G160,Tabelle2!$B$3:$C$38,2,) ->  | I160: RTLog | J160: Verona | L160: =VLOOKUP(K160,Tabelle2!$B$3:$C$38,2,) ->  | M160: BCP | N160: 295 | O160: 13360 | P160: 6400 | Q160: 0
B161: 160 | C161: 15 | D161: 2024-08-05 | E161: Kerosin | F161: Graz | G161: AT | H161: =VLOOKUP(G161,Tabelle2!$B$3:$C$38,2,) ->  | I161: Steinbruch | J161: Amsterdam | L161: =VLOOKUP(K161,Tabelle2!$B$3:$C$38,2,) ->  | M161: Kaarfor | N161: 1223 | O161: 64770 | P161: 23580 | Q161: 0
B162: 161 | C162: 16 | D162: 2024-08-05 | E162: Rollrasen | F162: Amsterdam | G162: NL | H162: =VLOOKUP(G162,Tabelle2!$B$3:$C$38,2,) ->  | I162: Stokes | J162: Groningen | L162: =VLOOKUP(K162,Tabelle2!$B$3:$C$38,2,) ->  | M162: EuroAcres | N162: 190 | O162: 6292 | P162: 15299 | Q162: 0
B163: 162 | C163: 17 | D163: 2024-08-06 | E163: Lebende Schweine | F163: Groningen | G163: NL | H163: =VLOOKUP(G163,Tabelle2!$B$3:$C$38,2,) ->  | I163: EuroAcres | J163: Osnabrück | L163: =VLOOKUP(K163,Tabelle2!$B$3:$C$38,2,) ->  | M163: EuroAcres | N163: 248 | O163: 3954 | P163: 6000 | Q163: 400
B164: 163 | C164: 18 | D164: 2024-08-06 | E164: Metallträger | F164: Osnabrück | G164: DE | H164: =VLOOKUP(G164,Tabelle2!$B$3:$C$38,2,) ->  | I164: EuroAcres | J164: Groningen | L164: =VLOOKUP(K164,Tabelle2!$B$3:$C$38,2,) ->  | M164: EuroAcres | N164: 207 | O164: 7380 | P164: 24380 | Q164: 1820
B165: 164 | C165: 19 | D165: 2024-08-06 | E165: Frischer Fisch | F165: Groningen | G165: NL | H165: =VLOOKUP(G165,Tabelle2!$B$3:$C$38,2,) ->  | I165: EuroAcres | J165: Groningen | L165: =VLOOKUP(K165,Tabelle2!$B$3:$C$38,2,) ->  | M165: EuroGoodies | N165: 10 | O165: 113074 | P165: 18520 | Q165: 1160
B166: 165 | C166: 20 | D166: 2024-08-06 | E166: Gabelstapler | F166: Groningen | G166: NL | H166: =VLOOKUP(G166,Tabelle2!$B$3:$C$38,2,) ->  | I166: Sellplan | J166: Amsterdam | L166: =VLOOKUP(K166,Tabelle2!$B$3:$C$38,2,) ->  | M166: Trameri | N166: 286 | O166: 8813 | P166: 11230 | Q166: 0
B167: 166 | C167: 21 | D167: 2024-08-07 | E167: Dachziegel | F167: Amsterdam | G167: NL | H167: =VLOOKUP(G167,Tabelle2!$B$3:$C$38,2,) ->  | I167: Trameri | J167: Duisburg | L167: =VLOOKUP(K167,Tabelle2!$B$3:$C$38,2,) ->  | M167: ITCC | N167: 329 | O167: 5910 | P167: 20364 | Q167: 200
B168: 167 | C168: 22 | D168: 2024-08-09 | E168: Pestizide | F168: Duisburg | G168: DE | H168: =VLOOKUP(G168,Tabelle2!$B$3:$C$38,2,) ->  | I168: Kaarfor | J168: Amsterdam | L168: =VLOOKUP(K168,Tabelle2!$B$3:$C$38,2,) ->  | M168: Stokes | N168: 261 | O168: 6578 | P168: 21600 | Q168: 0
B169: 168 | C169: 23 | D169: 2024-08-09 | E169: Abgassysteme | F169: Amsterdam | G169: NL | H169: =VLOOKUP(G169,Tabelle2!$B$3:$C$38,2,) ->  | I169: Stokes | J169: Rotterdam | L169: =VLOOKUP(K169,Tabelle2!$B$3:$C$38,2,) ->  | M169: SanBuilders | N169: 82 | O169: 3589 | P169: 7506 | Q169: 0
B170: 169 | C170: 24 | D170: 2024-08-09 | E170: Acetylen | F170: Rotterdam | G170: NL | H170: =VLOOKUP(G170,Tabelle2!$B$3:$C$38,2,) ->  | I170: WGCC | J170: Lüttich | L170: =VLOOKUP(K170,Tabelle2!$B$3:$C$38,2,) ->  | M170: Tree-Et | N170: 323 | O170: 6339 | P170: 4800 | Q170: 0
B171: 170 | C171: 27 | D171: 2024-08-11 | E171: Fertigtreppen (Beton | F171: Lüttich | G171: BE | H171: =VLOOKUP(G171,Tabelle2!$B$3:$C$38,2,) ->  | I171: ITCC | J171: Kalmar | L171: =VLOOKUP(K171,Tabelle2!$B$3:$C$38,2,) ->  | M171: GNT | N171: 1292 | O171: 44985 | P171: 22239 | Q171: 0
B172: 171 | C172: 26 | D172: 2024-08-11 | E172: Alkoholfreies Bier | F172: Reims | G172: FR | H172: =VLOOKUP(G172,Tabelle2!$B$3:$C$38,2,) ->  | I172: Steinbruch | J172: Lüttich | L172: =VLOOKUP(K172,Tabelle2!$B$3:$C$38,2,) ->  | M172: EuroGoodies | N172: 186 | O172: 8774 | P172: 22156 | Q172: 0
B173: 172 | C173: 25 | D173: 2024-08-11 | E173: Ahornsirup | F173: Lüttich | G173: BE | H173: =VLOOKUP(G173,Tabelle2!$B$3:$C$38,2,) ->  | I173: Tree-Et | J173: Reims | L173: =VLOOKUP(K173,Tabelle2!$B$3:$C$38,2,) ->  | M173: Steinbruch | N173: 187 | O173: 8653 | P173: 17213 | Q173: 0
B174: 173 | C174: 29 | D174: 2024-08-12 | E174: Milch | F174: Brüssel | G174: BE | H174: =VLOOKUP(G174,Tabelle2!$B$3:$C$38,2,) ->  | I174: EuroAcres | J174: Lille | L174: =VLOOKUP(K174,Tabelle2!$B$3:$C$38,2,) ->  | M174: Tradeaux | N174: 87 | O174: 3366 | P174: 23069 | Q174: 0
B175: 174 | C175: 28 | D175: 2024-08-12 | E175: Altkunststoff | F175: Kalmar | G175: SE | H175: =VLOOKUP(G175,Tabelle2!$B$3:$C$38,2,) ->  | I175: GNT | J175: Brüssel | L175: =VLOOKUP(K175,Tabelle2!$B$3:$C$38,2,) ->  | M175: FCP | N175: 1303 | O175: 28326 | P175: 8793 | Q175: 0
B176: 175 | C176: 30 | D176: 2024-08-12 | E176: Zement | F176: Lille | G176: FR | H176: =VLOOKUP(G176,Tabelle2!$B$3:$C$38,2,) ->  | I176: Tradeaux | J176: Brüssel | L176: =VLOOKUP(K176,Tabelle2!$B$3:$C$38,2,) ->  | M176: transinet | N176: 303 | O176: 2069 | P176: 21630 | Q176: 0
B177: 176 | C177: 31 | D177: 2024-08-13 | E177: Altkunststoff | F177: Brüssel | G177: BE | H177: =VLOOKUP(G177,Tabelle2!$B$3:$C$38,2,) ->  | I177: Transinet | J177: Plymouth | L177: =VLOOKUP(K177,Tabelle2!$B$3:$C$38,2,) ->  | M177: Trameri | N177: 664 | O177: 15037 | P177: 7135 | Q177: 0
B178: 177 | C178: 32 | D178: 2024-08-15 | E178: Lebendrind | F178: Plymouth | G178: GB | H178: =VLOOKUP(G178,Tabelle2!$B$3:$C$38,2,) ->  | I178: EuroAcres | J178: Cambridge | L178: =VLOOKUP(K178,Tabelle2!$B$3:$C$38,2,) ->  | M178: EuroAcres | N178: 479 | O178: 28032 | P178: 21760 | Q178: 2480
B179: 178 | C179: 33 | D179: 2024-08-15 | E179: Blumenkohl | F179: Cambridge | G179: GB | H179: =VLOOKUP(G179,Tabelle2!$B$3:$C$38,2,) ->  | I179: EuroAcres | J179: Aberdeen | L179: =VLOOKUP(K179,Tabelle2!$B$3:$C$38,2,) ->  | M179: Stokes | N179: 832 | O179: 25620 | P179: 9580 | Q179: 4340
B180: 179 | C180: 35 | D180: 2024-08-15 | E180: Zement | F180: Carlisle | G180: GB | H180: =VLOOKUP(G180,Tabelle2!$B$3:$C$38,2,) ->  | I180: PoSped | J180: Glasgow | L180: =VLOOKUP(K180,Tabelle2!$B$3:$C$38,2,) ->  | M180: ITCC | N180: 246 | O180: 3053 | P180: 21630 | Q180: 0
B181: 180 | C181: 38 | D181: 2024-08-15 | E181: Saftkonzentrat | F181: London | G181: GB | H181: =VLOOKUP(G181,Tabelle2!$B$3:$C$38,2,) ->  | I181: PoSped | J181: Felixstowe | L181: =VLOOKUP(K181,Tabelle2!$B$3:$C$38,2,) ->  | M181: LKWLog | N181: 152 | O181: 4197 | P181: 23513 | Q181: 0
B182: 181 | C182: 34 | D182: 2024-08-15 | E182: Holzspäne | F182: Aberdeen | G182: GB | H182: =VLOOKUP(G182,Tabelle2!$B$3:$C$38,2,) ->  | I182: Tree-Et | J182: Carlisle | L182: =VLOOKUP(K182,Tabelle2!$B$3:$C$38,2,) ->  | M182: EuroAcres | N182: 414 | O182: 3903 | P182: 4890 | Q182: 0
B183: 182 | C183: 37 | D183: 2024-08-15 | E183: Holzbalken | F183: Manchester | G183: GB | H183: =VLOOKUP(G183,Tabelle2!$B$3:$C$38,2,) ->  | I183: Tree-Et | J183: London | L183: =VLOOKUP(K183,Tabelle2!$B$3:$C$38,2,) ->  | M183: SanBuilders | N183: 556 | O183: 11273 | P183: 22361 | Q183: 0
B184: 183 | C184: 36 | D184: 2024-08-15 | E184: Natriumhydroxid | F184: Glasgow | G184: GB | H184: =VLOOKUP(G184,Tabelle2!$B$3:$C$38,2,) ->  | I184: WGCC | J184: Liverpool | L184: =VLOOKUP(K184,Tabelle2!$B$3:$C$38,2,) ->  | M184: NBFC | N184: 385 | O184: 12357 | P184: 18400 | Q184: 160
B185: 184 | C185: 41 | D185: 2024-08-16 | E185: Stilles Mineralwasser in Flaschen | F185: Grimsby | G185: GB | H185: =VLOOKUP(G185,Tabelle2!$B$3:$C$38,2,) ->  | I185: EuroGoodies | J185: Sheffield | L185: =VLOOKUP(K185,Tabelle2!$B$3:$C$38,2,) ->  | M185: transinet | N185: 110 | O185: 3341 | P185: 23464 | Q185: 0
B186: 185 | C186: 42 | D186: 2024-08-16 | E186: Fertigtreppen (Beton) | F186: Sheffield | G186: GB | H186: =VLOOKUP(G186,Tabelle2!$B$3:$C$38,2,) ->  | I186: ITCC | J186: Newcastle | L186: =VLOOKUP(K186,Tabelle2!$B$3:$C$38,2,) ->  | M186: SanBuilders | N186: 217 | O186: 6529 | P186: 22239 | Q186: 0
B187: 186 | C187: 40 | D187: 2024-08-16 | E187: Altkunststoff | F187: Southampton | G187: GB | H187: =VLOOKUP(G187,Tabelle2!$B$3:$C$38,2,) ->  | I187: Sellplan | J187: Grimsby | L187: =VLOOKUP(K187,Tabelle2!$B$3:$C$38,2,) ->  | M187: Tradeaux | N187: 459 | O187: 9257 | P187: 7153 | Q187: 0
B188: 187 | C188: 39 | D188: 2024-08-16 | E188: Holzspäne | F188: Felixstowe | G188: GB | H188: =VLOOKUP(G188,Tabelle2!$B$3:$C$38,2,) ->  | I188: Tree-Et | J188: Southampton | L188: =VLOOKUP(K188,Tabelle2!$B$3:$C$38,2,) ->  | M188: transinet | N188: 324 | O188: 3006 | P188: 4890 | Q188: 360
B189: 188 | C189: 43 | D189: 2024-08-17 | E189: Pasta | F189: Newcastle | G189: GB | H189: =VLOOKUP(G189,Tabelle2!$B$3:$C$38,2,) ->  | I189: EuroGoodies | J189: Edinburgh | L189: =VLOOKUP(K189,Tabelle2!$B$3:$C$38,2,) ->  | M189: EuroGoodies | N189: 260 | O189: 5906 | P189: 20407 | Q189: 0
B190: 189 | C190: 47 | D190: 2024-08-17 | E190: Dosenschweinefleisch | F190: Glasgow | G190: GB | H190: =VLOOKUP(G190,Tabelle2!$B$3:$C$38,2,) ->  | I190: EuroGoodies | J190: Newcastle | L190: =VLOOKUP(K190,Tabelle2!$B$3:$C$38,2,) ->  | M190: Sellplan | N190: 254 | O190: 11337 | P190: 22460 | Q190: 0
B191: 190 | C191: 46 | D191: 2024-08-17 | E191: Gummibärchen | F191: Edinburgh | G191: GB | H191: =VLOOKUP(G191,Tabelle2!$B$3:$C$38,2,) ->  | I191: Kaarfor | J191: Glasgow | L191: =VLOOKUP(K191,Tabelle2!$B$3:$C$38,2,) ->  | M191: EuroGoodies | N191: 99 | O191: 4813 | P191: 21288 | Q191: 0
B192: 191 | C192: 49 | D192: 2024-08-17 | E192: Erdnussbutter | F192: Carlisle | G192: GB | H192: =VLOOKUP(G192,Tabelle2!$B$3:$C$38,2,) ->  | I192: PoSped | J192: Grimsby | L192: =VLOOKUP(K192,Tabelle2!$B$3:$C$38,2,) ->  | M192: WGCC | N192: 344 | O192: 11208 | P192: 19539 | Q192: 0
B193: 192 | C193: 44 | D193: 2024-08-17 | E193: Bagger | F193: Edinburgh | G193: GB | H193: =VLOOKUP(G193,Tabelle2!$B$3:$C$38,2,) ->  | I193: SanBuilders | J193: Glasgow | L193: =VLOOKUP(K193,Tabelle2!$B$3:$C$38,2,) ->  | M193: Steinbruch | N193: 154 | O193: 5395 | P193: 23780 | Q193: 0
B194: 193 | C194: 48 | D194: 2024-08-17 | E194: Eisenrohre | F194: Newcastle | G194: GB | H194: =VLOOKUP(G194,Tabelle2!$B$3:$C$38,2,) ->  | I194: Sellplan | J194: Carlisle | L194: =VLOOKUP(K194,Tabelle2!$B$3:$C$38,2,) ->  | M194: Trameri | N194: 154 | O194: 4032 | P194: 18760 | Q194: 0
B195: 194 | C195: 45 | D195: 2024-08-17 | E195: Mamorblöcke | F195: Glasgow | G195: GB | H195: =VLOOKUP(G195,Tabelle2!$B$3:$C$38,2,) ->  | I195: Steinbruch | J195: Edinburgh | L195: =VLOOKUP(K195,Tabelle2!$B$3:$C$38,2,) ->  | M195: Kaarfor | N195: 229 | O195: 4467 | P195: 22500 | Q195: 0
B196: 195 | C196: 54 | D196: 2024-08-18 | E196: Dünger | F196: Felixstowe | G196: GB | H196: =VLOOKUP(G196,Tabelle2!$B$3:$C$38,2,) ->  | I196: LKWLog | J196: Cambridge | L196: =VLOOKUP(K196,Tabelle2!$B$3:$C$38,2,) ->  | M196: transinet | N196: 149 | O196: 6587 | P196: 20282 | Q196: 0
B197: 196 | C197: 52 | D197: 2024-08-18 | E197: Spanplatten | F197: London | G197: GB | H197: =VLOOKUP(G197,Tabelle2!$B$3:$C$38,2,) ->  | I197: Sellplan | J197: Birmingham | L197: =VLOOKUP(K197,Tabelle2!$B$3:$C$38,2,) ->  | M197: Tree-Et | N197: 362 | O197: 8257 | P197: 21559 | Q197: 0
B198: 197 | C198: 51 | D198: 2024-08-18 | E198: Steine | F198: Sheffield | G198: GB | H198: =VLOOKUP(G198,Tabelle2!$B$3:$C$38,2,) ->  | I198: Steinbruch | J198: London | L198: =VLOOKUP(K198,Tabelle2!$B$3:$C$38,2,) ->  | M198: NBFC | N198: 357 | O198: 5283 | P198: 27300 | Q198: 0
B199: 198 | C199: 53 | D199: 2024-08-18 | E199: Bauholz | F199: Birmingham | G199: GB | H199: =VLOOKUP(G199,Tabelle2!$B$3:$C$38,2,) ->  | I199: Tree-Et | J199: Felixstowe | L199: =VLOOKUP(K199,Tabelle2!$B$3:$C$38,2,) ->  | M199: Tradeaux | N199: 374 | O199: 7996 | P199: 17520 | Q199: 0
B200: 199 | C200: 50 | D200: 2024-08-18 | E200: Dieselgeneratoren | F200: Grimsby | G200: GB | H200: =VLOOKUP(G200,Tabelle2!$B$3:$C$38,2,) ->  | I200: WGCC | J200: Sheffield | L200: =VLOOKUP(K200,Tabelle2!$B$3:$C$38,2,) ->  | M200: Sellplan | N200: 109 | O200: 7076 | P200: 21516 | Q200: 0
... 679 more rows

Sheet Tabelle2
A2: Länder | B2: LC | C2: Flagge
B3: =_FV(A3,"Abkürzung") -> AL | C3: =_FV(A3,"Bild") -> 
B4: =_FV(A4,"Abkürzung") -> BE | C4: =_FV(A4,"Bild") -> 
B5: BIH | C5: =_FV(A5,"Bild") -> 
B6: =_FV(A6,"Abkürzung") -> BG | C6: =_FV(A6,"Bild") -> 
B7: =_FV(A7,"Abkürzung") -> DK | C7: =_FV(A7,"Bild") -> 
B8: =_FV(A8,"Abkürzung") -> DE | C8: =_FV(A8,"Bild") -> 
B9: =_FV(A9,"Abkürzung") -> EE | C9: =_FV(A9,"Bild") -> 
B10: =_FV(A10,"Abkürzung") -> FI | C10: =_FV(A10,"Bild") -> 
B11: =_FV(A11,"Abkürzung") -> FR | C11: =_FV(A11,"Bild") -> 
B12: =_FV(A12,"Abkürzung") -> GR | C12: =_FV(A12,"Bild") -> 
B13: =_FV(A13,"Abkürzung") -> IT | C13: =_FV(A13,"Bild") -> 
B14: =_FV(A14,"Abkürzung") ->  | C14: =_FV(A14,"Bild") -> 
B15: =_FV(A15,"Abkürzung") -> HR | C15: =_FV(A15,"Bild") -> 
B16: =_FV(A16,"Abkürzung") -> LV | C16: =_FV(A16,"Bild") -> 
B17: =_FV(A17,"Abkürzung") -> LT | C17: =_FV(A17,"Bild") -> 
B18: =_FV(A18,"Abkürzung") -> LU | C18: =_FV(A18,"Bild") -> 
B19: =_FV(A19,"Abkürzung") -> ME | C19: =_FV(A19,"Bild") -> 
B20: =_FV(A20,"Abkürzung") -> NL | C20: =_FV(A20,"Bild") -> 
B21: MK | C21: =_FV(A21,"Bild") -> 
B22: =_FV(A22,"Abkürzung") -> NO | C22: =_FV(A22,"Bild") -> 
B23: =_FV(A23,"Abkürzung") -> AT | C23: =_FV(A23,"Bild") -> 
B24: =_FV(A24,"Abkürzung") -> PL | C24: =_FV(A24,"Bild") -> 
B25: =_FV(A25,"Abkürzung") -> PT | C25: =_FV(A25,"Bild") -> 
B26: =_FV(A26,"Abkürzung") -> RO | C26: =_FV(A26,"Bild") -> 
B27: =_FV(A27,"Abkürzung") -> RU | C27: =_FV(A27,"Bild") -> 
B28: =_FV(A28,"Abkürzung") -> SE | C28: =_FV(A28,"Bild") -> 
B29: =_FV(A29,"Abkürzung") -> CH | C29: =_FV(A29,"Bild") -> 
B30: =_FV(A30,"Abkürzung") -> RS | C30: =_FV(A30,"Bild") -> 
B31: =_FV(A31,"Abkürzung") -> SK | C31: =_FV(A31,"Bild") -> 
B32: =_FV(A32,"Abkürzung") -> SI | C32: =_FV(A32,"Bild") -> 
B33: =_FV(A33,"Abkürzung") -> ES | C33: =_FV(A33,"Bild") -> 
B34: =_FV(A34,"Abkürzung") -> CZ | C34: =_FV(A34,"Bild") -> 
B35: =_FV(A35,"Abkürzung") -> TR | C35: =_FV(A35,"Bild") -> 
B36: =_FV(A36,"Abkürzung") -> HU | C36: =_FV(A36,"Bild") -> 
B37: =_FV(A37,"Abkürzung") -> GB | C37: =_FV(A37,"Bild") -> 
A38: Winterwonderland | B38: WL | C38: =_xlfn.IMAGE("https://trucksbook.eu/data/system/flags/small/xl.png") -> 

Sheet Tabelle1 (2)
B1: Nr. | C1: Nr | D1: Datum | E1: Fracht | F1: Start | G1: LC | H1: Spedition | I1: Ziel | J1: LC | K1: Spedition | L1: km | M1: Vergütung | N1: Gewicht Lieferung | O1: Strafen
B2: 1 | C2: 2 | D2: 2024-06-25 | E2: Traktoren | F2: Graz | G2: =VLOOKUP("DE",Tabelle2!$B$3:$C$38,2,FALSE) ->  | H2: FCP | I2: Linz | J2: AT | K2: RTLog | L2: 249 | M2: 4663 | O2: 0
B3: 2 | C3: 3 | D3: 2024-06-25 | E3: Traktoren | F3: Graz | G3: =VLOOKUP("at",Tabelle2!$B$3:$C$38,2,FALSE) ->  | H3: FCP | I3: Klagenfurt a.W. | J3: AT | K3: EuroAcres | L3: 218 | M3: 4667 | O3: 0
B4: 3 | C4: 6 | D4: 2024-06-25 | E4: Große Eisenrohre | F4: Linz | G4: AT | H4: ITCC | I4: Innsbruck | J4: =VLOOKUP("at",Tabelle2!$B$3:$C$38,2,FALSE) ->  | K4: RTLog | L4: 325 | M4: 5080 | O4: 0
B5: 4 | C5: 1 | D5: 2024-06-25 | E5: Äpfel | F5: Graz | G5: AT | H5: LKWLog | I5: Graz | J5: AT | K5: RTLog | L5: 1 | M5: 362 | O5: 200
B6: 5 | C6: 8 | D6: 2024-06-25 | E6: Motorradreifen | F6: Graz | G6: AT | H6: LKWLog | I6: Salzburg | J6: AT | K6: RTLog | L6: 281 | M6: 5968 | O6: 0
B7: 6 | C7: 4 | D7: 2024-06-25 | E7: Traktoren | F7: Linz | G7: AT | H7: PoSped | I7: Graz | J7: AT | K7: RTLog | L7: 249 | M7: 5304 | O7: 0
B8: 7 | C8: 5 | D8: 2024-06-25 | E8: Olivenöl | F8: Linz | G8: =VLOOKUP("tr",Tabelle2!$B$3:$C$38,2,FALSE) ->  | H8: PoSped | I8: Prag | J8: =VLOOKUP("tr",Tabelle2!$B$3:$C$38,2,FALSE) ->  | K8: EuroGoodies | L8: 306 | M8: 4325 | O8: 400
B9: 8 | C9: 7 | D9: 2024-06-25 | E9: Milchpulver | F9: Prag | G9: CZ | H9: Tradeaux | I9: Erfurt | J9: DE | K9: Sellplan | L9: 344 | M9: 5378 | O9: 0
B10: 9 | C10: 15 | D10: 2024-06-26 | E10: Große Eisenrohre | F10: Metz | G10: FR | H10: PoSped | I10: Frankfurt | J10: DE | K10: WGCC | L10: 351 | M10: 7947 | O10: 400
B11: 10 | C11: 11 | D11: 2024-06-26 | E11: Rohrleitungszbehör | F11: Salzburg | G11: AT | H11: RTLog | I11: Stuttgart | J11: DE | K11: Stokes | L11: 349 | M11: 7723 | O11: 0
B12: 11 | C12: 13 | D12: 2024-06-26 | E12: Altkunststoff | F12: Bern | G12: CH | H12: Sellplan | I12: Dijon | J12: FR | K12: Stokes | L12: 216 | M12: 3536 | O12: 0
B13: 12 | C13: 9 | D13: 2024-06-26 | E13: Stilles Mineralwasser in Flaschen | F13: Salzburg | G13: AT | H13: Shuttle Cola | I13: Brünn | J13: CZ | K13: LKWLog | L13: 336 | M13: 7334 | O13: 0
B14: 13 | C14: 12 | D14: 2024-06-26 | E14: Milch | F14: Stuttgart | G14: DE | H14: Stokes | I14: Bern | J14: CH | K14: Sellplan | L14: 336 | M14: 8772 | O14: 0
B15: 14 | C15: 14 | D15: 2024-06-26 | E15: Mineralwasser | F15: Dijon | G15: FR | H15: Stokes | I15: Metz | J15: FR | K15: PoSped | L15: 251 | M15: 5496 | O15: 0
B16: 15 | C16: 10 | D16: 2024-06-26 | E16: Gabelstapler | F16: Brünn | G16: CZ | H16: Trameri | I16: Salzburg | J16: AT | K16: RTLog | L16: 343 | M16: 8367 | O16: 0
B17: 16 | C17: 16 | D17: 2024-06-26 | E17: Gabelstapler | F17: Frankfurt | G17: DE | H17: WGCC | I17: Luxemburg | J17: LU | K17: SanBuilders | L17: 330 | M17: 8480 | N17: 21720 | O17: 800
B18: 17 | C18: 19 | D18: 2024-06-27 | E18: Autos | F18: Manchester | G18: GB | H18: FCP | I18: Amsterdam | J18: NL | K18: LKWLog | L18: 301 | M18: 8802 | O18: 0
B19: 18 | C19: 20 | D19: 2024-06-27 | E19: Rohrleitunngszubehör | F19: Amsterdam | G19: NL | H19: LKWLog | I19: Hannover | J19: DE | K19: Tradeaux | L19: 328 | M19: 7563 | O19: 0
B20: 19 | C20: 18 | D20: 2024-06-27 | E20: Reifen | F20: Rotterdam | G20: NL | H20: PoSped | I20: Manchester | J20: GB | K20: FCP | L20: 227 | M20: 6321 | O20: 0
B21: 20 | C21: 17 | D21: 2024-06-27 | E21: Raupenbagger | F21: Luxemburg | G21: LU | H21: SanBuilders | I21: Rotterdam | J21: NL | K21: PoSped | L21: 343 | M21: 8763 | O21: 0
B22: 21 | C22: 22 | D22: 2024-06-28 | E22: Leere Paletten | F22: Rostock | G22: DE | H22: Sellplan | I22: Prag | J22: CZ | K22: Tradeaux | L22: 550 | M22: 10964 | O22: 0
B23: 22 | C23: 21 | D23: 2024-06-28 | E23: Einmachgläser | F23: Hanover | G23: DE | H23: Tradeaux | I23: Rostock | J23: DE | K23: Sellplan | L23: 346 | M23: 9085 | O23: 400
B24: 23 | C24: 23 | D24: 2024-06-28 | E24: Äpfel | F24: Prag | G24: CZ | H24: Tradeaux | I24: Salzburg | J24: AT | K24: RTLog | L24: 381 | M24: 8967 | O24: 0
B25: 24 | C25: 25 | D25: 2024-06-30 | E25: Kautschuk | F25: Bratislava | G25: SK | H25: PoSped | I25: Linz | J25: AT | K25: PoSped | L25: 330 | M25: 8278 | N25: 21730 | O25: 0
B26: 25 | C26: 26 | D26: 2024-06-30 | E26: Mandeln | F26: Linz | G26: AT | H26: PoSped | I26: Klagenfurt a.W. | J26: AT | K26: Tradeaux | L26: 324 | M26: 7068 | N26: 17460 | O26: 0
B27: 26 | C27: 28 | D27: 2024-06-30 | E27: Klebebandrollen | F27: Verona | G27: IT | H27: PoSped | I27: Torino | J27: IT | K27: transinet | L27: 350 | M27: 7132 | N27: 18018 | O27: 0
B28: 27 | C28: 24 | D28: 2024-06-30 | E28: Klebebandrollen | F28: Salzburg | G28: AT | H28: RTLog | I28: Bratislava | J28: SK | K28: PoSped | L28: 320 | M28: 5604 | N28: 12492 | O28: 0
B29: 28 | C29: 27 | D29: 2024-06-30 | E29: Schnittblumen | F29: Klagenfurt a.W. | G29: AT | H29: Tradeaux | I29: Verona | J29: IT | K29: PoSped | L29: 450 | M29: 11727 | N29: 1759 | O29: 0
B30: 29 | C30: 29 | D30: 2024-06-30 | E30: Beton-Bodenplatten | F30: Torino | G30: IT | H30: transinet | I30: Zürich | J30: CH | K30: RTLog | L30: 511 | M30: 8929 | N30: 19188 | O30: 0
B31: 30 | C31: 4 | D31: 2024-07-01 | E31: Eiskaffee in Dosen | F31: Mannheim | G31: DE | H31: EuroGoodies | I31: Lille | J31: FR | K31: Tradeaux | L31: 546 | M31: 12933 | N31: 21259 | O31: 0
B32: 31 | C32: 2 | D32: 2024-07-01 | E32: Motoröl | F32: Verona | G32: IT | H32: PoSped | I32: Innsbruck | J32: AT | K32: RTLog | L32: 281 | M32: 7255 | N32: 18754 | O32: 0
B33: 32 | C33: 1 | D33: 2024-07-01 | E33: Geräucherter Aal | F33: Zürich | G33: CH | H33: RTLog | I33: Verona | J33: IT | K33: PoSped | L33: 492 | M33: 12231 | N33: 11481 | O33: 0
B34: 33 | C34: 3 | D34: 2024-07-01 | E34: Milch | F34: Innsbruck | G34: AT | H34: RTLog | I34: Mannheim | J34: DE | K34: EuroGoodies | L34: 548 | M34: 13474 | N34: 20500 | O34: 0
B35: 34 | C35: 5 | D35: 2024-07-02 | E35: Radlader | F35: Graz | G35: AT | H35: FCP | I35: Nürnberg | J35: DE | K35: SanBuilders | L35: 515 | M35: 14881 | O35: 520
B36: 35 | C36: 8 | D36: 2024-07-03 | E36: Kokosnussöl | F36: Reims | G36: FR | H36: EuroGoodies | I36: Calais | J36: FR | K36: Stokes | L36: 269 | M36: 6705 | N36: 23631 | O36: 0
B37: 36 | C37: 7 | D37: 2024-07-03 | E37: Fischstäbchen | F37: Dortmund | G37: DE | H37: LKWLog | I37: Reims | J37: FR | K37: Eurogoodies | L37: 485 | M37: 12051 | N37: 17160 | O37: 0
B38: 37 | C38: 10 | D38: 2024-07-03 | E38: Industrieruß | F38: Birmingham | G38: GB | H38: PoSped | I38: Manchester | J38: GB | K38: LKWLog | L38: 201 | M38: 2480 | N38: 3783 | O38: 0
B39: 38 | C39: 6 | D39: 2024-07-03 | E39: Leere Paletten | F39: Nürnberg | G39: DE | H39: SanBuilders | I39: Dortmund | J39: DE | K39: LKWLog | L39: 479 | M39: 7305 | N39: 15385 | O39: 0
B40: 39 | C40: 9 | D40: 2024-07-03 | E40: Eisenrohre | F40: Calais | G40: FR | H40: Stokes | I40: Birmingham | J40: BG | K40: PoSped | L40: 342 | M40: 7760 | N40: 18760 | O40: 0
B41: 40 | C41: 11 | D41: 2024-07-04 | E41: Autos | F41: Manchester | G41: GB | H41: FCP | I41: Rotterdam | J41: NL | K41: transinet | L41: 225 | M41: 8178 | N41: 7350 | O41: 400
B42: 41 | C42: 14 | D42: 2024-07-04 | E42: LPG | F42: Hamburg | G42: DE | H42: NSOil | I42: Leipzig | J42: DE | K42: Tree-Et | L42: 449 | M42: 15322 | N42: 22000 | O42: 360
B43: 42 | C43: 12 | D43: 2024-07-04 | E43: Flour | F43: Rotterdam | G43: NL | H43: WGCC | I43: Frankfurt | J43: DE | K43: WGCC | L43: 463 | M43: 15654 | N43: 14790 | O43: 0
B44: 43 | C44: 13 | D44: 2024-07-04 | E44: Kraftstofftank | F44: Frankfurt | G44: DE | H44: WGCC | I44: Hamburg | J44: DE | K44: AI Automotive | L44: 518 | M44: 14215 | N44: 9600 | O44: 0
B45: 44 | C45: 16 | D45: 2024-07-05 | E45: Milch | F45: Bremen | G45: DE | H45: EuroAcres | I45: Groningen | J45: NL | K45: Sellplan | L45: 193 | M45: 6080 | N45: 25075 | O45: 3200
B46: 45 | C46: 17 | D46: 2024-07-05 | E46: Milch | F46: Groningen | G46: NL | H46: EuroAcres | I46: Dresden | J46: DE | K46: transinet | L46: 765 | M46: 25271 | N46: 25075 | O46: 3940
B47: 46 | C47: 15 | D47: 2024-07-05 | E47: Saftkonzentrat | F47: Leipzig | G47: DE | H47: EuroGoodies | I47: Bremen | J47: DE | K47: EuroAcres | L47: 511 | M47: 10053 | N47: 24820 | O47: 0
B48: 47 | C48: 19 | D48: 2024-07-05 | E48: Große Eisenrohre | F48: Lüttich | G48: BE | H48: ITCC | I48: Swansea | J48: GB | K48: PoSped | L48: 781 | M48: 20181 | N48: 22840 | O48: 400
B49: 48 | C49: 18 | D49: 2024-07-05 | E49: Altkunststoff | F49: Dresden | G49: DE | H49: Trameri | I49: Lüttich | J49: BE | K49: Stokes | L49: 714 | M49: 13172 | N49: 9762 | O49: 0
B50: 49 | C50: 20 | D50: 2024-07-06 | E50: Medizinische Ausrüstung | F50: Graz | G50: AT | H50: LKWLog | I50: Wien | J50: AT | K50: Stokes | L50: 234 | M50: 5430 | N50: 5214 | O50: 0
B51: 50 | C51: 22 | D51: 2024-07-06 | E51: Raupenbagger | F51: Graz | G51: AT | H51: Steinbruch | I51: Graz | J51: AT | K51: Steinbruch | L51: 55 | M51: 101603 | N51: 21720 | O51: 360
B52: 51 | C52: 23 | D52: 2024-07-06 | E52: Steine | F52: Graz | G52: AT | H52: Steinbruch | I52: Graz | J52: AT | K52: FCP | L52: 45 | M52: 34998 | N52: 23100 | O52: 0
B53: 52 | C53: 21 | D53: 2024-07-06 | E53: Abgassysteme | F53: Wien | G53: AT | H53: Stokes | I53: Graz | J53: AT | K53: Steinbruch | L53: 190 | M53: 2664 | N53: 3753 | O53: 0
B54: 53 | C54: 24 | D54: 2024-07-07 | E54: Bagger | F54: Graz | G54: AT | H54: FCP | I54: Graz | J54: AT | K54: Tree-Et | L54: 212 | M54: 102806 | N54: 23780 | O54: 0
B55: 54 | C55: 27 | D55: 2024-07-07 | E55: Autos | F55: Graz | G55: AT | H55: RTLog | I55: Frankfurt | J55: DE | K55: WGCC | L55: 692 | M55: 26100 | N55: 10400 | O55: 0
B56: 55 | C56: 29 | D56: 2024-07-07 | E56: Getränke | F56: Genf | G56: CH | H56: RTLog | I56: Strassburg | J56: FR | K56: Kaarfor | L56: 452 | M56: 12931 | N56: 25000 | O56: 0
B57: 56 | C57: 26 | D57: 2024-07-07 | E57: Bagger | F57: Graz | G57: AT | H57: Steinbruch | I57: Graz | J57: AT | K57: EuroAcres | L57: 176 | M57: 102806 | N57: 23780 | O57: 0
B58: 57 | C58: 25 | D58: 2024-07-07 | E58: Fertighauswände | F58: Graz | G58: AT | H58: Tree-Et | I58: Graz | J58: AT | K58: FCP | L58: 153 | M58: 78308 | N58: 20999 | O58: 0
B59: 58 | C59: 28 | D59: 2024-07-07 | E59: Neon | F59: Frankfurt | G59: DE | H59: WGCC | I59: Genf | J59: CH | K59: Kathode | L59: 645 | M59: 19621 | N59: 9600 | O59: 0
B60: 59 | C60: 32 | D60: 2024-07-08 | E60: Traktoren | F60: Wien | G60: AT | H60: EuroGoodies | I60: Klagenfurt a.W. | J60: AT | K60: EuroAcres | L60: 336 | M60: 5495 | N60: 5695 | O60: 880
B61: 60 | C61: 33 | D61: 2024-07-08 | E61: Bagger | F61: Graz | G61: AT | H61: FCP | I61: Livorno | J61: IT | K61: SALSRL | L61: 779 | M61: 24889 | N61: 23780 | O61: 0
B62: 61 | C62: 30 | D62: 2024-07-08 | E62: Raupenbagger | F62: Strassburg | G62: FR | H62: Kaarfor | I62: Travemünde | J62: DE | K62: Marina | L62: 760 | M62: 25659 | N62: 21720 | O62: 0
B63: 62 | C63: 31 | D63: 2024-07-08 | E63: Atlantisches Kabeljaufilet | F63: Travemünde | G63: DE | H63: Marina | I63: Wien | J63: AT | K63: EuroGoodies | L63: 1132 | M63: 26147 | N63: 16450 | O63: 0
B64: 63 | C64: 35 | D64: 2024-07-09 | E64: Glasscheiben | F64: Sarajevo | G64: BIH | H64: Belkan Loco | I64: Göteborg | J64: SE | K64: AgroNord | L64: 2144 | M64: 600 | O64: 800
B65: 64 | C65: 34 | D65: 2024-07-09 | E65: Computerprozessoren | F65: Livorno | G65: IT | H65: SALSRL | I65: Sarajevo | J65: BIH | K65: Balkan Loco | L65: 1383 | M65: 44610 | N65: 3854 | O65: 0
B66: 65 | C66: 36 | D66: 2024-07-09 | E66: Zugmaschinen-Volvo | F66: Göteborg | G66: SE | H66: VOLVO | I66: Göteborg | J66: SE | K66: VPC | L66: 14 | M66: 142445 | N66: 14680 | O66: 0
B67: 66 | C67: 38 | D67: 2024-07-10 | E67: Sand | F67: Graz | G67: AT | H67: Steinbruch | I67: Istanbul | J67: TR | K67: Baltrak Lojistik | L67: 1659 | M67: 53523 | N67: 47586 | O67: 0
B68: 67 | C68: 37 | D68: 2024-07-10 | E68: Zugmaschinen-Volvo | F68: Göteborg | G68: SE | H68: VOLVO | I68: Graz | J68: AT | K68: FCP | L68: 1826 | M68: 60230 | N68: 14680 | O68: 800
B69: 68 | C69: 39 | D69: 2024-07-12 | E69: Limonade | F69: Istanbul | G69: TR | H69: Baltrak Lojistic | I69: Villa San Giovanni | J69: IT | K69: Eolo Lines | L69: 1581 | M69: 49679 | N69: 23998 | O69: 300
B70: 69 | C70: 40 | D70: 2024-07-12 | E70: Wassermelonen | F70: Villa San Giovanni | G70: IT | H70: Eolo Lines | I70: Uppsala | J70: SE | K70: Dekkar Trans | L70: 2965 | M70: 81534 | N70: 20170 | O70: 0
B71: 70 | C71: 42 | D71: 2024-07-13 | E71: Gabelstapler | F71: Helsingborg | G71: SE | H71: BHV | I71: Graz | J71: AT | K71: Steinbruch | L71: 1307 | M71: 47695 | N71: 11230 | O71: 400
B72: 71 | C72: 41 | D72: 2024-07-13 | E72: Gerüstmaterial | F72: Uppsala | G72: SE | H72: Drekkar Trans | I72: Helsingborg | J72: SE | K72: BHV | L72: 594 | M72: 16201 | N72: 22126 | O72: 0
B73: 72 | C73: 43 | D73: 2024-07-13 | E73: Bremsflüssigkeit | F73: Graz | G73: AT | H73: FCP | I73: Göteborg | J73: SE | K73: VOLVO | L73: 1403 | M73: 34138 | N73: 5316 | O73: 0
B74: 73 | C74: 44 | D74: 2024-07-13 | E74: Zugmaschinen-Volvo | F74: Göteborg | G74: SE | H74: VOLVO | I74: Göteborg | J74: SE | K74: VPC | L74: 15 | M74: 158388 | N74: 14680 | O74: 0
B75: 74 | C75: 48 | D75: 2024-07-14 | E75: Baumstämme | F75: St.Petersburg | G75: RU | H75: Baltomorsk | I75: Helsinki | J75: FI | K75: AeroBaltika | L75: 554 | M75: 15298 | N75: 22740 | O75: 780
B76: 75 | C76: 46 | D76: 2024-07-14 | E76: Scania - Zugmaschinen | F76: Algeciras | G76: ES | H76: CESTA S.L | I76: Graz | J76: AT | K76: Tree-Et | L76: 3026 | M76: 137238 | N76: 14590 | O76: 0
B77: 76 | C77: 47 | D77: 2024-07-14 | E77: Autos | F77: Graz | G77: AT | H77: FCP | I77: St.Petersburg | J77: RU | K77: Baltomorsk | L77: 1995 | M77: 83894 | N77: 9010 | O77: 0
B78: 77 | C78: 45 | D78: 2024-07-14 | E78: Zugmaschinen-Volvo | F78: Göteborg | G78: SE | H78: VPC | I78: Algeciras | J78: ES | K78: CESTA S.L | L78: 3402 | M78: 169514 | N78: 14680 | O78: 400
B79: 78 | C79: 49 | D79: 2024-07-15 | E79: Dieselgeneratoren | F79: Helsinki | G79: FI | H79: AeroBaltika | I79: Oslo | J79: NO | K79: ContainerPort | L79: 856 | M79: 44738 | N79: 21516 | O79: 0
B80: 79 | C80: 51 | D80: 2024-07-17 | E80: Hochspannungsleitungen | F80: Köln | G80: DE | H80: ITCC | I80: Aberdeen | J80: GB | K80: NBFC | L80: 1467 | M80: 52535 | N80: 21480 | O80: 0
B81: 80 | C81: 50 | D81: 2024-07-17 | E81: Zugmaschinen-Volvo | F81: Oslo | G81: NO | H81: RenarLogistik | I81: Köln | J81: DE | K81: ITCC | L81: 1509 | M81: 67410 | N81: 14680 | O81: 0
B82: 81 | C82: 54 | D82: 2024-07-19 | E82: Zugmaschinen-Volvo | F82: Berlin | G82: DE | H82: NBFC | I82: Linz | J82: AT | K82: ITCC | L82: 616 | M82: 33861 | N82: 14680 | O82: 0
B83: 82 | C83: 52 | D83: 2024-07-19 | E83: Chlor | F83: Aberdeen | G83: GB | H83: NSChemicals | I83: Malmö | J83: SE | K83: NBFC | L83: 1009 | M83: 39011 | N83: 18270 | O83: 400
B84: 83 | C84: 53 | D84: 2024-07-19 | E84: Wasserfreies Amoniak | F84: Malmö | G84: SE | H84: NSChemicals | I84: Berlin | J84: DE | K84: NBFC | L84: 434 | M84: 16891 | N84: 18980 | O84: 0
B85: 84 | C85: 56 | D85: 2024-07-21 | E85: Kleintransporter | F85: Le Mans | G85: FR | H85: BHV | I85: Rennes | J85: FR | K85: Globeur | L85: 155 | M85: 5965 | N85: 840 | O85: 400
B86: 85 | C86: 58 | D86: 2024-07-21 | E86: Wäschetrockner | F86: Bukarest | G86: RO | H86: Brawen | I86: Graz | J86: AT | K86: RTLog | L86: 1155 | M86: 43440 | N86: 13256 | O86: 360
B87: 86 | C87: 57 | D87: 2024-07-21 | E87: Drehgestell | F87: Rennes | G87: FR | H87: Globeur | I87: Bukarest | J87: RO | K87: Brawen | L87: 2750 | M87: 123114 | N87: 20740 | O87: 0
B88: 87 | C88: 55 | D88: 2024-07-21 | E88: Dünger | F88: Linz | G88: AT | H88: RTLog | I88: Le Mans | J88: FR | K88: WilnetTransport | L88: 2036 | M88: 41151 | N88: 20282 | O88: 0
B89: 88 | C89: 60 | D89: 2024-07-22 | E89: Diesel | F89: Graz | G89: AT | H89: FCP | I89: Stuttgart | J89: DE | K89: BCP | L89: 624 | M89: 31553 | N89: 23800 | O89: 0
B90: 89 | C90: 59 | D90: 2024-07-22 | E90: Drehgestell | F90: Graz | G90: AT | H90: Steinbruch | I90: Luxemburg | J90: LU | K90: ITCC | L90: 999 | M90: 45346 | N90: 20740 | O90: 0
B91: 90 | C91: 63 | D91: 2024-07-23 | E91: Aluminiumbarren | F91: Wien | G91: AT | H91: CNP | I91: Linz | J91: AT | K91: DomDepo | L91: 173 | M91: 7771 | N91: 24157 | O91: 800
B92: 91 | C92: 64 | D92: 2024-07-23 | E92: Acetylen | F92: Linz | G92: AT | H92: DomDepo | I92: Salzburg | J92: AT | K92: Steinbruch | L92: 409 | M92: 3890 | N92: 4800 | O92: 0
B93: 92 | C93: 67 | D93: 2024-07-23 | E93: Äpfel | F93: Klagenfurt a.W. | G93: AT | H93: Euroacres | I93: Graz | J93: AT | K93: EuroAcres | L93: 369 | M93: 7694 | N93: 18336 | O93: 8600
B94: 93 | C94: 66 | D94: 2024-07-23 | E94: Atlantisches Kabeljaufilet | F94: Innsbruck | G94: AT | H94: EuroGoodies | I94: Klagenfurt a.W. | J94: AT | K94: EuroAcres | L94: 341 | M94: 14984 | N94: 16450 | O94: 0
B95: 94 | C95: 62 | D95: 2024-07-23 | E95: Bagger | F95: Graz | G95: AT | H95: FCP | I95: Wien | J95: AT | K95: CNP | L95: 179 | M95: 7948 | N95: 23780 | O95: 760
B96: 95 | C96: 65 | D96: 2024-07-23 | E96: Dieselgeneratoren | F96: Salzburg | G96: AT | H96: Steinbruch | I96: Innsbruck | J96: AT | K96: EuroGoodies | L96: 163 | M96: 11166 | N96: 21516 | O96: 0
B97: 96 | C97: 68 | D97: 2024-07-23 | E97: Granitblöcke | F97: Graz | G97: AT | H97: Steinbruch | I97: Wien | J97: AT | K97: EuroAcres | L97: 289 | M97: 2739 | N97: 23000 | O97: 0
B98: 97 | C98: 61 | D98: 2024-07-23 | E98: Zugmaschinen-Volvo | F98: Stuttgart | G98: DE | H98: Stokes | I98: Graz | J98: AT | K98: FCP | L98: 741 | M98: 33500 | N98: 14680 | O98: 0
B99: 98 | C99: 69 | D99: 2024-07-24 | E99: Computerprozessoren | F99: Wien | G99: AT | H99: EuroAcres | I99: Linz | J99: AT | K99: ITCC | L99: 255 | M99: 11323 | N99: 3854 | O99: 800
B100: 99 | C100: 74 | D100: 2024-07-24 | E100: Fertigtreppen (Beton | F100: Graz | G100: AT | H100: FCP | I100: Wien | J100: AT | K100: NSOil | L100: 162 | M100: 6162 | N100: 21565 | O100: 1600
B101: 100 | C101: 70 | D101: 2024-07-24 | E101: Dynamit | F101: Linz | G101: AT | H101: ITCC | I101: Salzburg | J101: AT | K101: Renat | L101: 105 | M101: 8219 | N101: 17160 | O101: 400
B102: 101 | C102: 76 | D102: 2024-07-24 | E102: Grosse Eisenrohre | F102: Linz | G102: AT | H102: ITCC | I102: Salzburg | J102: AT | K102: SanBuilders | L102: 241 | M102: 5727 | N102: 22840 | O102: 0
B103: 102 | C103: 73 | D103: 2024-07-24 | E103: Feuerwerk | F103: Klagenfurt a.W. | G103: AT | H103: Kathode | I103: Graz | J103: AT | K103: FCP | L103: 127 | M103: 8866 | N103: 9900 | O103: 200
B104: 103 | C104: 75 | D104: 2024-07-24 | E104: Benzin | F104: Wien | G104: AT | H104: NSOil | I104: Linz | J104: AT | K104: ITCC | L104: 212 | M104: 12679 | N104: 21750 | O104: 0
B105: 104 | C105: 71 | D105: 2024-07-24 | E105: Chemisches Sorptionsmittel | F105: Salzburg | G105: AT | H105: Renat | I105: Innsbruck | J105: AT | K105: RTLog | L105: 253 | M105: 5890 | N105: 8752 | O105: 0
B106: 105 | C106: 72 | D106: 2024-07-24 | E106: Autos | F106: Innsbruck | G106: AT | H106: RTLog | I106: Klagenfurt a.W. | J106: AT | K106: Kathode | L106: 447 | M106: 19878 | N106: 7000 | O106: 0
B107: 106 | C107: 77 | D107: 2024-07-24 | E107: Bagger | F107: Salzburg | G107: AT | H107: SanBuilders | I107: Innsbruck | J107: AT | K107: Trameri | L107: 296 | M107: 9683 | N107: 23780 | O107: 0
B108: 107 | C108: 78 | D108: 2024-07-24 | E108: Heiße Chemikalien | F108: Innsbruck | G108: AT | H108: Trameri | I108: Klagenfurt a.W. | J108: AT | K108: Sellplan | L108: 465 | M108: 23139 | N108: 19800 | O108: 460
B109: 108 | C109: 85 | D109: 2024-07-26 | E109: Luxus-SUV´s | F109: Graz | G109: AT | H109: LKWLog | I109: Wien | J109: AT | K109: Stokes | L109: 150 | M109: 9819 | N109: 11100 | O109: 0
B110: 109 | C110: 82 | D110: 2024-07-26 | E110: Kaminsysteme | F110: Linz | G110: AT | H110: PoSped | I110: Salzburg | J110: AT | K110: SanBuilders | L110: 212 | M110: 6015 | N110: 18450 | O110: 0
B111: 110 | C111: 83 | D111: 2024-07-26 | E111: Quecksilberchlorid | F111: Salzburg | G111: AT | H111: SanBuilders | I111: Klagenfurt a.W. | J111: AT | K111: Tradeaux | L111: 333 | M111: 11852 | N111: 15660 | O111: 0
B112: 111 | C112: 79 | D112: 2024-07-26 | E112: Erz | F112: Klagenfurt a.W. | G112: AT | H112: Sellplan | I112: Graz | J112: AT | K112: Steinbruch | L112: 61 | M112: 2738 | N112: 22200 | O112: 0
B113: 112 | C113: 81 | D113: 2024-07-26 | E113: Kaliumhydroxid | F113: Wien | G113: AT | H113: Sellplan | I113: Linz | J113: AT | K113: PoSped | L113: 226 | M113: 10991 | N113: 19800 | O113: 400
B114: 113 | C114: 80 | D114: 2024-07-26 | E114: Mamorplatte | F114: Graz | G114: AT | H114: Steinbruch | I114: Wien | J114: AT | K114: Sellplan | L114: 160 | M114: 5754 | N114: 23500 | O114: 0
B115: 114 | C115: 84 | D115: 2024-07-26 | E115: Getränke | F115: Klagenfurt a.W. | G115: AT | H115: Tradeaux | I115: Graz | J115: AT | K115: LKWLog | L115: 110 | M115: 4480 | N115: 23526 | O115: 0
B116: 115 | C116: 91 | D116: 2024-07-27 | E116: Hochdruck-Schieberventile | F116: Innsbruck | G116: AT | H116: EuroGoodies | I116: Klagenfurt a.W. | J116: AT | K116: Trameri | L116: 646 | M116: 15050 | N116: 19077 | O116: 0
B117: 116 | C117: 90 | D117: 2024-07-27 | E117: Alkoholfreies Bier | F117: Zürich | G117: CH | H117: Kathode | I117: Innsbruck | J117: AT | K117: EuroGoodies | L117: 310 | M117: 11136 | N117: 22156 | O117: 400
B118: 117 | C118: 87 | D118: 2024-07-27 | E118: Computerprozessoren | F118: Linz | G118: AT | H118: PoSped | I118: Salzburg | J118: AT | K118: Shuttle Cola | L118: 171 | M118: 8864 | N118: 3854 | O118: 0
B119: 118 | C119: 88 | D119: 2024-07-27 | E119: Bagger | F119: Salzburg | G119: AT | H119: Shuttle Cola | I119: Innsbruck | J119: AT | K119: Steinbruch | L119: 226 | M119: 10007 | N119: 23780 | O119: 0
B120: 119 | C120: 89 | D120: 2024-07-27 | E120: Beton-Bodenplatten | F120: Innsbruck | G120: AT | H120: Steinbruch | I120: Zürich | J120: AT | K120: Stokes | L120: 353 | M120: 9260 | N120: 19188 | O120: 0
B121: 120 | C121: 86 | D121: 2024-07-27 | E121: Jacht - Queen V39 | F121: Wien | G121: AT | H121: Stokes | I121: Linz | J121: AT | K121: RTLog | L121: 196 | M121: 13511 | N121: 9900 | O121: 0
B122: 121 | C122: 95 | D122: 2024-07-28 | E122: Geräucherte Sprotten | F122: Wien | G122: AT | H122: EuroAcres | I122: Brünn | J122: CZ | K122: SanBuilders | L122: 138 | M122: 5936 | N122: 17572 | O122: 800
B123: 122 | C123: 97 | D123: 2024-07-28 | E123: Gesteinsmehl | F123: Wien | G123: AT | H123: EuroAcres | I123: Bratislava | K123: WGCC | L123: 136 | M123: 2725 | N123: 22100 | O123: 400
B124: 123 | C124: 94 | D124: 2024-07-28 | E124: Geräucherter Aal | F124: Wien | G124: AT | H124: EuroGoodies | I124: Wien | K124: EuroAcres | L124: 161 | M124: 106280 | N124: 11481 | O124: 800
B125: 124 | C125: 93 | D125: 2024-07-28 | E125: Kleintransporter | F125: Graz | G125: AT | H125: FCP | I125: Wien | K125: EuroGoodies | L125: 147 | M125: 7947 | N125: 6150 | O125: 0
B126: 125 | C126: 100 | D126: 2024-07-28 | E126: Gabelstapler | F126: Budapest | G126: HU | H126: Kaarfor | I126: Graz | K126: Tree-Et | L126: 478 | M126: 15377 | N126: 11230 | O126: 0
B127: 126 | C127: 99 | D127: 2024-07-28 | E127: Gerüstmaterial | F127: Wien | G127: AT | H127: NSOil | I127: Budapest | K127: Trameri | L127: 466 | M127: 10077 | N127: 21456 | O127: 400
B128: 127 | C128: 96 | D128: 2024-07-28 | E128: Leberwurst | F128: Brünn | G128: CZ | H128: SanBuilders | I128: Wien | K128: EuroAcres | L128: 120 | M128: 5495 | N128: 17411 | O128: 0
B129: 128 | C129: 92 | D129: 2024-07-28 | E129: Salzsäure | F129: Klagenfurt a.W. | G129: AT | H129: Tradeaux | I129: Graz | K129: FCP | L129: 105 | M129: 7728 | N129: 21780 | O129: 0
B130: 129 | C130: 101 | D130: 2024-07-28 | E130: Baumstämme | F130: Graz | G130: AT | H130: Tree-Et | I130: Wien | K130: NSOil | L130: 173 | M130: 5167 | N130: 22740 | O130: 0
B131: 130 | C131: 98 | D131: 2024-07-28 | E131: Kleidung | F131: Bratislava | G131: SK | H131: WGCC | I131: Wien | K131: NSOil | L131: 318 | M131: 4172 | N131: 18720 | O131: 0
B132: 131 | C132: 104 | D132: 2024-07-29 | E132: Graphitfett | F132: Maribor | G132: SLO | H132: Balkan Loco | I132: Graz | K132: Steinbruch | L132: 78 | M132: 4910 | N132: 16909 | O132: 160
B133: 132 | C133: 103 | D133: 2024-07-29 | E133: Desinfektionsmittel | F133: Graz | G133: AT | H133: EuroAcres | I133: Maribor | K133: Balkan Loco | L133: 423 | M133: 4250 | N133: 16820 | O133: 0
B134: 133 | C134: 102 | D134: 2024-07-29 | E134: Spannplatten | F134: Graz | G134: AT | H134: Steinbruch | I134: Graz | K134: EuroAcres | L134: 529 | M134: 109589 | N134: 21599 | O134: 400
B135: 134 | C135: 105 | D135: 2024-07-29 | E135: Gabelstapler | F135: Graz | G135: AT | H135: Steinbruch | I135: Graz | K135: Steinbruch | L135: 50 | M135: 129244 | N135: 11230 | O135: 0
B136: 135 | C136: 106 | D136: 2024-07-29 | E136: Gesteinsmehl | F136: Graz | G136: AT | H136: Steinbruch | I136: Nürnberg | K136: Kathode | L136: 696 | M136: 7399 | N136: 22100 | O136: 1000
B137: 136 | C137: 107 | D137: 2024-07-30 | E137: Acetylen | F137: Nürnberg | G137: DE | H137: Kathode | I137: Nürnberg | K137: SanBuilders | L137: 11 | M137: 126031 | N137: 9600 | O137: 0
B138: 137 | C138: 108 | D138: 2024-07-30 | E138: Außenfliesen | F138: Nürnberg | G138: DE | H138: SanBuilders | I138: Salzburg | K138: Sellplan | L138: 392 | M138: 10492 | N138: 20579 | O138: 0
B139: 138 | C139: 109 | D139: 2024-07-30 | E139: Atlantisches Kabeljaufilet | F139: Salzburg | G139: AT | H139: Sellplan | I139: Salzburg | K139: Tree-Et | L139: 267 | M139: 103817 | N139: 16450 | O139: 0
B140: 139 | C140: 112 | D140: 2024-07-30 | E140: Jacht - Queen V39 | F140: Triest | G140: IT | H140: Terminal Container | I140: Ljubljana | K140: Balkan Loco | L140: 208 | M140: 12750 | N140: 9900 | O140: 0
B141: 140 | C141: 110 | D141: 2024-07-30 | E141: Bauholz | F141: Salzburg | G141: AT | H141: Tree-Et | I141: Klagenfurt a.W. | K141: Tree-Et | L141: 278 | M141: 8436 | N141: 17520 | O141: 0
B142: 141 | C142: 111 | D142: 2024-07-30 | E142: Gabelstapler | F142: Klagenfurt a.W. | G142: AT | H142: Tree-Et | I142: Triest | K142: Terminal Container | L142: 345 | M142: 16070 | N142: 11230 | O142: 0
B143: 142 | C143: 113 | D143: 2024-07-31 | E143: Kugelventile | F143: Ljubiljana | G143: SLO | H143: AI Automotive | I143: Salzburg | K143: RTLog | L143: 366 | M143: 11629 | N143: 22173 | O143: 360
B144: 143 | C144: 115 | D144: 2024-07-31 | E144: Dieselgeneratoren | F144: Salzburg | G144: AT | H144: Renat | I144: Salzburg | K144: Tree-Et | L144: 296 | M144: 150570 | N144: 21516 | O144: 0
B145: 144 | C145: 114 | D145: 2024-07-31 | E145: Benzin | F145: Salzburg | G145: AT | H145: RTLog | I145: Salzburg | K145: Renat | L145: 61 | M145: 178083 | N145: 21750 | O145: 0
B146: 145 | C146: 116 | D146: 2024-07-31 | E146: Zugmaschinen-Volvo | F146: Salzburg | G146: AT | H146: Tree-Et | I146: Klagenfurt a.W. | K146: EuroAcres | L146: 378 | M146: 17205 | N146: 14680 | O146: 720
B147: 146 | C147: 1 | D147: 2024-08-03 | E147: Lebende Schweine | F147: Klagenfurt a.W. | G147: AT | H147: Euroacres | I147: Salzburg | K147: SanBuilders | L147: 254 | M147: 5812 | N147: 6000 | O147: 2760
B148: 147 | C148: 4 | D148: 2024-08-03 | E148: Arbeitskleidung | F148: Venedig | G148: IT | H148: EuroGoodies | I148: Ljubljana | K148: ITCC | L148: 427 | M148: 12046 | N148: 16454 | O148: 0
B149: 148 | C149: 3 | D149: 2024-08-03 | E149: Dachfenster | F149: Ljubiljana | G149: SLO | H149: ITCC | I149: Venedig | K149: EuroGoodies | L149: 397 | M149: 13876 | N149: 5273 | O149: 0
B150: 149 | C150: 5 | D150: 2024-08-03 | E150: Eisenrohre | F150: Ljubiljana | G150: SLO | H150: ITCC | I150: Klagenfurt a.W. | K150: Trameri | L150: 190 | M150: 8439 | N150: 24380 | O150: 0
B151: 150 | C151: 2 | D151: 2024-08-03 | E151: Atlantisches Kabeljaufilet | F151: Salzburg | G151: AT | H151: Sellplan | I151: Ljubljana | K151: ITCC | L151: 260 | M151: 10914 | N151: 16450 | O151: 0
B152: 151 | C152: 7 | D152: 2024-08-03 | E152: Altkunststoff | F152: Salzburg | G152: AT | H152: Sellplan | I152: Linz | K152: PoSped | L152: 222 | M152: 3642 | N152: 9672 | O152: 0
B153: 152 | C153: 6 | D153: 2024-08-03 | E153: Explosivstoffe | F153: Klagenfurt a.W. | G153: AT | H153: Trameri | I153: Salzburg | K153: Sellplan | L153: 385 | M153: 13707 | N153: 11680 | O153: 0
B154: 153 | C154: 13 | D154: 2024-08-04 | E154: Dachziegel | F154: Verona | G154: IT | H154: BCP | I154: Stuttgart | K154: FLE | L154: 788 | M154: 19859 | N154: 20364 | O154: 0
B155: 154 | C155: 9 | D155: 2024-08-04 | E155: LKW-Batterien | F155: Nürnberg | G155: DE | H155: CNP | I155: Salzburg | K155: Renat | L155: 338 | M155: 10282 | N155: 15976 | O155: 0
B156: 155 | C156: 11 | D156: 2024-08-04 | E156: Motorräder | F156: Nürnberg | G156: DE | H156: DFH | I156: Innsbruck | K156: RTLog | L156: 401 | M156: 18199 | N156: 15048 | O156: 0
B157: 156 | C157: 14 | D157: 2024-08-04 | E157: Ahornsirup | F157: Stuttgart | G157: DE | H157: FLE | I157: Salzburg | K157: Tree-Et | L157: 536 | M157: 11739 | N157: 17213 | O157: 0
B158: 157 | C158: 8 | D158: 2024-08-04 | E158: Elektronik | F158: Llinz | G158: AT | H158: PoSped | I158: Nürnberg | K158: CNP | L158: 350 | M158: 14529 | N158: 8194 | O158: 0
B159: 158 | C159: 10 | D159: 2024-08-04 | E159: Propan | F159: Salzburg | G159: AT | H159: Renat | I159: Nürnberg | K159: DFH | L159: 393 | M159: 14056 | N159: 19720 | O159: 0
B160: 159 | C160: 12 | D160: 2024-08-04 | E160: Autos | F160: Innsbruck | G160: AT | H160: RTLog | I160: Verona | K160: BCP | L160: 295 | M160: 13360 | N160: 6400 | O160: 0
B161: 160 | C161: 15 | D161: 2024-08-05 | E161: Kerosin | F161: Graz | G161: AT | H161: Steinbruch | I161: Amsterdam | K161: Kaarfor | L161: 1223 | M161: 64770 | N161: 23580 | O161: 0
B162: 161 | C162: 16 | D162: 2024-08-05 | E162: Rollrasen | F162: Amsterdam | G162: NL | H162: Stokes | I162: Groningen | K162: EuroAcres | L162: 190 | M162: 6292 | N162: 15299 | O162: 0
B163: 162 | C163: 17 | D163: 2024-08-06 | E163: Lebende Schweine | F163: Groningen | G163: NL | H163: EuroAcres | I163: Osnabrück | K163: EuroAcres | L163: 248 | M163: 3954 | N163: 6000 | O163: 400
B164: 163 | C164: 18 | D164: 2024-08-06 | E164: Metallträger | F164: Osnabrück | G164: DE | H164: EuroAcres | I164: Groningen | K164: EuroAcres | L164: 207 | M164: 7380 | N164: 24380 | O164: 1820
B165: 164 | C165: 19 | D165: 2024-08-06 | E165: Frischer Fisch | F165: Groningen | G165: NL | H165: EuroAcres | I165: Groningen | K165: EuroGoodies | L165: 10 | M165: 113074 | N165: 18520 | O165: 1160
B166: 165 | C166: 20 | D166: 2024-08-06 | E166: Gabelstapler | F166: Groningen | G166: NL | H166: Sellplan | I166: Amsterdam | K166: Trameri | L166: 286 | M166: 8813 | N166: 11230 | O166: 0
B167: 166 | C167: 21 | D167: 2024-08-07 | E167: Dachziegel | F167: Amsterdam | G167: NL | H167: Trameri | I167: Duisburg | K167: ITCC | L167: 329 | M167: 5910 | N167: 20364 | O167: 200
B168: 167 | C168: 22 | D168: 2024-08-09 | E168: Pestizide | F168: Duisburg | G168: DE | H168: Kaarfor | I168: Amsterdam | K168: Stokes | L168: 261 | M168: 6578 | N168: 21600 | O168: 0
B169: 168 | C169: 23 | D169: 2024-08-09 | E169: Abgassysteme | F169: Amsterdam | G169: NL | H169: Stokes | I169: Rotterdam | K169: SanBuilders | L169: 82 | M169: 3589 | N169: 7506 | O169: 0
B170: 169 | C170: 24 | D170: 2024-08-09 | E170: Acetylen | F170: Rotterdam | G170: NL | H170: WGCC | I170: Lüttich | K170: Tree-Et | L170: 323 | M170: 6339 | N170: 4800 | O170: 0
B171: 170 | C171: 27 | D171: 2024-08-11 | E171: Fertigtreppen (Beton | F171: Lüttich | G171: BE | H171: ITCC | I171: Kalmar | K171: GNT | L171: 1292 | M171: 44985 | N171: 22239 | O171: 0
B172: 171 | C172: 26 | D172: 2024-08-11 | E172: Alkoholfreies Bier | F172: Reims | G172: FR | H172: Steinbruch | I172: Lüttich | K172: EuroGoodies | L172: 186 | M172: 8774 | N172: 22156 | O172: 0
B173: 172 | C173: 25 | D173: 2024-08-11 | E173: Ahornsirup | F173: Lüttich | G173: BE | H173: Tree-Et | I173: Reims | K173: Steinbruch | L173: 187 | M173: 8653 | N173: 17213 | O173: 0
B174: 173 | C174: 29 | D174: 2024-08-12 | E174: Milch | F174: Brüssel | G174: BE | H174: EuroAcres | I174: Lille | K174: Tradeaux | L174: 87 | M174: 3366 | N174: 23069 | O174: 0
B175: 174 | C175: 28 | D175: 2024-08-12 | E175: Altkunststoff | F175: Kalmar | G175: SE | H175: GNT | I175: Brüssel | K175: FCP | L175: 1303 | M175: 28326 | N175: 8793 | O175: 0
B176: 175 | C176: 30 | D176: 2024-08-12 | E176: Zement | F176: Lille | G176: FR | H176: Tradeaux | I176: Brüssel | K176: transinet | L176: 303 | M176: 2069 | N176: 21630 | O176: 0
B177: 176 | C177: 31 | D177: 2024-08-13 | E177: Altkunststoff | F177: Brüssel | G177: BE | H177: Transinet | I177: Plymouth | K177: Trameri | L177: 664 | M177: 15037 | N177: 7135 | O177: 0
B178: 177 | C178: 32 | D178: 2024-08-15 | E178: Lebendrind | F178: Plymouth | G178: GB | H178: EuroAcres | I178: Cambridge | K178: EuroAcres | L178: 479 | M178: 28032 | N178: 21760 | O178: 2480
B179: 178 | C179: 33 | D179: 2024-08-15 | E179: Blumenkohl | F179: Cambridge | G179: GB | H179: EuroAcres | I179: Aberdeen | K179: Stokes | L179: 832 | M179: 25620 | N179: 9580 | O179: 4340
B180: 179 | C180: 35 | D180: 2024-08-15 | E180: Zement | F180: Carlisle | G180: GB | H180: PoSped | I180: Glasgow | K180: ITCC | L180: 246 | M180: 3053 | N180: 21630 | O180: 0
B181: 180 | C181: 38 | D181: 2024-08-15 | E181: Saftkonzentrat | F181: London | G181: GB | H181: PoSped | I181: Felixstowe | K181: LKWLog | L181: 152 | M181: 4197 | N181: 23513 | O181: 0
B182: 181 | C182: 34 | D182: 2024-08-15 | E182: Holzspäne | F182: Aberdeen | G182: GB | H182: Tree-Et | I182: Carlisle | K182: EuroAcres | L182: 414 | M182: 3903 | N182: 4890 | O182: 0
B183: 182 | C183: 37 | D183: 2024-08-15 | E183: Holzbalken | F183: Manchester | G183: GB | H183: Tree-Et | I183: London | K183: SanBuilders | L183: 556 | M183: 11273 | N183: 22361 | O183: 0
B184: 183 | C184: 36 | D184: 2024-08-15 | E184: Natriumhydroxid | F184: Glasgow | G184: GB | H184: WGCC | I184: Liverpool | K184: NBFC | L184: 385 | M184: 12357 | N184: 18400 | O184: 160
B185: 184 | C185: 41 | D185: 2024-08-16 | E185: Stilles Mineralwasser in Flaschen | F185: Grimsby | G185: GB | H185: EuroGoodies | I185: Sheffield | K185: transinet | L185: 110 | M185: 3341 | N185: 23464 | O185: 0
B186: 185 | C186: 42 | D186: 2024-08-16 | E186: Fertigtreppen (Beton) | F186: Sheffield | G186: GB | H186: ITCC | I186: Newcastle | K186: SanBuilders | L186: 217 | M186: 6529 | N186: 22239 | O186: 0
B187: 186 | C187: 40 | D187: 2024-08-16 | E187: Altkunststoff | F187: Southampton | G187: GB | H187: Sellplan | I187: Grimsby | K187: Tradeaux | L187: 459 | M187: 9257 | N187: 7153 | O187: 0
B188: 187 | C188: 39 | D188: 2024-08-16 | E188: Holzspäne | F188: Felixstowe | G188: GB | H188: Tree-Et | I188: Southampton | K188: transinet | L188: 324 | M188: 3006 | N188: 4890 | O188: 360
B189: 188 | C189: 43 | D189: 2024-08-17 | E189: Pasta | F189: Newcastle | G189: GB | H189: EuroGoodies | I189: Edinburgh | K189: EuroGoodies | L189: 260 | M189: 5906 | N189: 20407 | O189: 0
B190: 189 | C190: 47 | D190: 2024-08-17 | E190: Dosenschweinefleisch | F190: Glasgow | G190: GB | H190: EuroGoodies | I190: Newcastle | K190: Sellplan | L190: 254 | M190: 11337 | N190: 22460 | O190: 0
B191: 190 | C191: 46 | D191: 2024-08-17 | E191: Gummibärchen | F191: Edinburgh | G191: GB | H191: Kaarfor | I191: Glasgow | K191: EuroGoodies | L191: 99 | M191: 4813 | N191: 21288 | O191: 0
B192: 191 | C192: 49 | D192: 2024-08-17 | E192: Erdnussbutter | F192: Carlisle | G192: GB | H192: PoSped | I192: Grimsby | K192: WGCC | L192: 344 | M192: 11208 | N192: 19539 | O192: 0
B193: 192 | C193: 44 | D193: 2024-08-17 | E193: Bagger | F193: Edinburgh | G193: GB | H193: SanBuilders | I193: Glasgow | K193: Steinbruch | L193: 154 | M193: 5395 | N193: 23780 | O193: 0
B194: 193 | C194: 48 | D194: 2024-08-17 | E194: Eisenrohre | F194: Newcastle | G194: GB | H194: Sellplan | I194: Carlisle | K194: Trameri | L194: 154 | M194: 4032 | N194: 18760 | O194: 0
B195: 194 | C195: 45 | D195: 2024-08-17 | E195: Mamorblöcke | F195: Glasgow | G195: GB | H195: Steinbruch | I195: Edinburgh | K195: Kaarfor | L195: 229 | M195: 4467 | N195: 22500 | O195: 0
B196: 195 | C196: 54 | D196: 2024-08-18 | E196: Dünger | F196: Felixstowe | G196: GB | H196: LKWLog | I196: Cambridge | K196: transinet | L196: 149 | M196: 6587 | N196: 20282 | O196: 0
B197: 196 | C197: 52 | D197: 2024-08-18 | E197: Spanplatten | F197: London | G197: GB | H197: Sellplan | I197: Birmingham | K197: Tree-Et | L197: 362 | M197: 8257 | N197: 21559 | O197: 0
B198: 197 | C198: 51 | D198: 2024-08-18 | E198: Steine | F198: Sheffield | G198: GB | H198: Steinbruch | I198: London | K198: NBFC | L198: 357 | M198: 5283 | N198: 27300 | O198: 0
B199: 198 | C199: 53 | D199: 2024-08-18 | E199: Bauholz | F199: Birmingham | G199: GB | H199: Tree-Et | I199: Felixstowe | K199: Tradeaux | L199: 374 | M199: 7996 | N199: 17520 | O199: 0
B200: 199 | C200: 50 | D200: 2024-08-18 | E200: Dieselgeneratoren | F200: Grimsby | G200: GB | H200: WGCC | I200: Sheffield | K200: Sellplan | L200: 109 | M200: 7076 | N200: 21516 | O200: 0
... 679 more rows
